{"text_format":"1","workbook":"xlsx","n_sheets":13,"sheets":["الصفحه الرئيسيه","قائمه العملاء","قائمه المورديين","قائمه الاصناف","قائمه المصروفات","قائمه الخدمات","فواتير المشتريات","فواتير المبيعات","يوميه الخدمات","التحصيل من العميل","السداد للمورد","حركه المصروفات","الخزينه"],"not_rendered":{"charts":0,"images":10,"macros":0,"external_links":0,"defined_names":0,"comments":0,"pivot_tables":0},"unopened":[],"bounds":{"document_bytes":16777216,"sheet_cells":100000,"rows_first":2000,"rows_last":500,"rows_between":2000,"halvings":0,"cell_chars":16384,"cell_head_chars":4096},"cells_cut":0,"cells_raw":0,"read":"whole","date_system":"1900"}

{"sheet":"الصفحه الرئيسيه","index":0,"n_rows":3,"n_cols":11,"rows_kept":3,"cut":false,"hidden":false,"merged":[[2,1,3,3],[2,4,3,9],[2,10,3,12]]}
[]
[]
[null,"اسم الشــــركه",null,null,"لا تنسونى من صالح دعائكم",null,null,null,null,null,{"$f":"NOW()","v":"2026-04-10T18:20:07.140"}]

{"sheet":"قائمه العملاء","index":1,"n_rows":92,"n_cols":6,"rows_kept":92,"cut":false,"hidden":false,"merged":[[0,0,0,5]]}
["قائمه العملاء"]
["اســـم العـــميل","بيانات العـــميل","الرصيد الافتتاحي","مدين","دائن","الرصيد الحالي"]
["عميل 1",null,null,{"$f":"SUMIF('فواتير المبيعات'!C:C,A3,'فواتير المبيعات'!L:L)+SUMIF('يوميه الخدمات'!C:C,A3,'يوميه الخدمات'!J:J)","v":2052},{"$f":"SUMIF('التحصيل من العميل'!C:C,A3,'التحصيل من العميل'!D:D)","v":2052},{"$f":"C3+D3-E3","v":0}]
["عميل 2",null,null,{"$f":"SUMIF('فواتير المبيعات'!C:C,A4,'فواتير المبيعات'!L:L)+SUMIF('يوميه الخدمات'!C:C,A4,'يوميه الخدمات'!J:J)","v":0},{"$f":"SUMIF('التحصيل من العميل'!C:C,A4,'التحصيل من العميل'!D:D)","v":0},0]
["عميل 3",null,null,{"$f":"SUMIF('فواتير المبيعات'!C:C,A5,'فواتير المبيعات'!L:L)+SUMIF('يوميه الخدمات'!C:C,A5,'يوميه الخدمات'!J:J)","v":0},{"$f":"SUMIF('التحصيل من العميل'!C:C,A5,'التحصيل من العميل'!D:D)","v":0},0]
["عميل 4",null,null,{"$f":"SUMIF('فواتير المبيعات'!C:C,A6,'فواتير المبيعات'!L:L)+SUMIF('يوميه الخدمات'!C:C,A6,'يوميه الخدمات'!J:J)","v":0},{"$f":"SUMIF('التحصيل من العميل'!C:C,A6,'التحصيل من العميل'!D:D)","v":0},0]
["عميل 5",null,null,{"$f":"SUMIF('فواتير المبيعات'!C:C,A7,'فواتير المبيعات'!L:L)+SUMIF('يوميه الخدمات'!C:C,A7,'يوميه الخدمات'!J:J)","v":0},{"$f":"SUMIF('التحصيل من العميل'!C:C,A7,'التحصيل من العميل'!D:D)","v":0},0]
[null,null,null,{"$f":"SUMIF('فواتير المبيعات'!C:C,A8,'فواتير المبيعات'!L:L)+SUMIF('يوميه الخدمات'!C:C,A8,'يوميه الخدمات'!J:J)","v":0},{"$f":"SUMIF('التحصيل من العميل'!C:C,A8,'التحصيل من العميل'!D:D)","v":0},0]
[null,null,null,{"$f":"SUMIF('فواتير المبيعات'!C:C,A9,'فواتير المبيعات'!L:L)+SUMIF('يوميه الخدمات'!C:C,A9,'يوميه الخدمات'!J:J)","v":0},{"$f":"SUMIF('التحصيل من العميل'!C:C,A9,'التحصيل من العميل'!D:D)","v":0},0]
[null,null,null,{"$f":"SUMIF('فواتير المبيعات'!C:C,A10,'فواتير المبيعات'!L:L)+SUMIF('يوميه الخدمات'!C:C,A10,'يوميه الخدمات'!J:J)","v":0},{"$f":"SUMIF('التحصيل من العميل'!C:C,A10,'التحصيل من العميل'!D:D)","v":0},0]
[null,null,null,{"$f":"SUMIF('فواتير المبيعات'!C:C,A11,'فواتير المبيعات'!L:L)+SUMIF('يوميه الخدمات'!C:C,A11,'يوميه الخدمات'!J:J)","v":0},{"$f":"SUMIF('التحصيل من العميل'!C:C,A11,'التحصيل من العميل'!D:D)","v":0},0]
[null,null,null,{"$f":"SUMIF('فواتير المبيعات'!C:C,A12,'فواتير المبيعات'!L:L)+SUMIF('يوميه الخدمات'!C:C,A12,'يوميه الخدمات'!J:J)","v":0},{"$f":"SUMIF('التحصيل من العميل'!C:C,A12,'التحصيل من العميل'!D:D)","v":0},0]
[null,null,null,{"$f":"SUMIF('فواتير المبيعات'!C:C,A13,'فواتير المبيعات'!L:L)+SUMIF('يوميه الخدمات'!C:C,A13,'يوميه الخدمات'!J:J)","v":0},{"$f":"SUMIF('التحصيل من العميل'!C:C,A13,'التحصيل من العميل'!D:D)","v":0},0]
[null,null,null,{"$f":"SUMIF('فواتير المبيعات'!C:C,A14,'فواتير المبيعات'!L:L)+SUMIF('يوميه الخدمات'!C:C,A14,'يوميه الخدمات'!J:J)","v":0},{"$f":"SUMIF('التحصيل من العميل'!C:C,A14,'التحصيل من العميل'!D:D)","v":0},0]
[null,null,null,{"$f":"SUMIF('فواتير المبيعات'!C:C,A15,'فواتير المبيعات'!L:L)+SUMIF('يوميه الخدمات'!C:C,A15,'يوميه الخدمات'!J:J)","v":0},{"$f":"SUMIF('التحصيل من العميل'!C:C,A15,'التحصيل من العميل'!D:D)","v":0},0]
[null,null,null,{"$f":"SUMIF('فواتير المبيعات'!C:C,A16,'فواتير المبيعات'!L:L)+SUMIF('يوميه الخدمات'!C:C,A16,'يوميه الخدمات'!J:J)","v":0},{"$f":"SUMIF('التحصيل من العميل'!C:C,A16,'التحصيل من العميل'!D:D)","v":0},0]
[null,null,null,{"$f":"SUMIF('فواتير المبيعات'!C:C,A17,'فواتير المبيعات'!L:L)+SUMIF('يوميه الخدمات'!C:C,A17,'يوميه الخدمات'!J:J)","v":0},{"$f":"SUMIF('التحصيل من العميل'!C:C,A17,'التحصيل من العميل'!D:D)","v":0},0]
[null,null,null,{"$f":"SUMIF('فواتير المبيعات'!C:C,A18,'فواتير المبيعات'!L:L)+SUMIF('يوميه الخدمات'!C:C,A18,'يوميه الخدمات'!J:J)","v":0},{"$f":"SUMIF('التحصيل من العميل'!C:C,A18,'التحصيل من العميل'!D:D)","v":0},0]
[null,null,null,{"$f":"SUMIF('فواتير المبيعات'!C:C,A19,'فواتير المبيعات'!L:L)+SUMIF('يوميه الخدمات'!C:C,A19,'يوميه الخدمات'!J:J)","v":0},{"$f":"SUMIF('التحصيل من العميل'!C:C,A19,'التحصيل من العميل'!D:D)","v":0},0]
[null,null,null,{"$f":"SUMIF('فواتير المبيعات'!C:C,A20,'فواتير المبيعات'!L:L)+SUMIF('يوميه الخدمات'!C:C,A20,'يوميه الخدمات'!J:J)","v":0},{"$f":"SUMIF('التحصيل من العميل'!C:C,A20,'التحصيل من العميل'!D:D)","v":0},0]
[null,null,null,{"$f":"SUMIF('فواتير المبيعات'!C:C,A21,'فواتير المبيعات'!L:L)+SUMIF('يوميه الخدمات'!C:C,A21,'يوميه الخدمات'!J:J)","v":0},{"$f":"SUMIF('التحصيل من العميل'!C:C,A21,'التحصيل من العميل'!D:D)","v":0},0]
[null,null,null,{"$f":"SUMIF('فواتير المبيعات'!C:C,A22,'فواتير المبيعات'!L:L)+SUMIF('يوميه الخدمات'!C:C,A22,'يوميه الخدمات'!J:J)","v":0},{"$f":"SUMIF('التحصيل من العميل'!C:C,A22,'التحصيل من العميل'!D:D)","v":0},0]
[null,null,null,{"$f":"SUMIF('فواتير المبيعات'!C:C,A23,'فواتير المبيعات'!L:L)+SUMIF('يوميه الخدمات'!C:C,A23,'يوميه الخدمات'!J:J)","v":0},{"$f":"SUMIF('التحصيل من العميل'!C:C,A23,'التحصيل من العميل'!D:D)","v":0},0]
[null,null,null,{"$f":"SUMIF('فواتير المبيعات'!C:C,A24,'فواتير المبيعات'!L:L)+SUMIF('يوميه الخدمات'!C:C,A24,'يوميه الخدمات'!J:J)","v":0},{"$f":"SUMIF('التحصيل من العميل'!C:C,A24,'التحصيل من العميل'!D:D)","v":0},0]
[null,null,null,{"$f":"SUMIF('فواتير المبيعات'!C:C,A25,'فواتير المبيعات'!L:L)+SUMIF('يوميه الخدمات'!C:C,A25,'يوميه الخدمات'!J:J)","v":0},{"$f":"SUMIF('التحصيل من العميل'!C:C,A25,'التحصيل من العميل'!D:D)","v":0},0]
[null,null,null,{"$f":"SUMIF('فواتير المبيعات'!C:C,A26,'فواتير المبيعات'!L:L)+SUMIF('يوميه الخدمات'!C:C,A26,'يوميه الخدمات'!J:J)","v":0},{"$f":"SUMIF('التحصيل من العميل'!C:C,A26,'التحصيل من العميل'!D:D)","v":0},0]
[null,null,null,{"$f":"SUMIF('فواتير المبيعات'!C:C,A27,'فواتير المبيعات'!L:L)+SUMIF('يوميه الخدمات'!C:C,A27,'يوميه الخدمات'!J:J)","v":0},{"$f":"SUMIF('التحصيل من العميل'!C:C,A27,'التحصيل من العميل'!D:D)","v":0},0]
[null,null,null,{"$f":"SUMIF('فواتير المبيعات'!C:C,A28,'فواتير المبيعات'!L:L)+SUMIF('يوميه الخدمات'!C:C,A28,'يوميه الخدمات'!J:J)","v":0},{"$f":"SUMIF('التحصيل من العميل'!C:C,A28,'التحصيل من العميل'!D:D)","v":0},0]
[null,null,null,{"$f":"SUMIF('فواتير المبيعات'!C:C,A29,'فواتير المبيعات'!L:L)+SUMIF('يوميه الخدمات'!C:C,A29,'يوميه الخدمات'!J:J)","v":0},{"$f":"SUMIF('التحصيل من العميل'!C:C,A29,'التحصيل من العميل'!D:D)","v":0},0]
[null,null,null,{"$f":"SUMIF('فواتير المبيعات'!C:C,A30,'فواتير المبيعات'!L:L)+SUMIF('يوميه الخدمات'!C:C,A30,'يوميه الخدمات'!J:J)","v":0},{"$f":"SUMIF('التحصيل من العميل'!C:C,A30,'التحصيل من العميل'!D:D)","v":0},0]
[null,null,null,{"$f":"SUMIF('فواتير المبيعات'!C:C,A31,'فواتير المبيعات'!L:L)+SUMIF('يوميه الخدمات'!C:C,A31,'يوميه الخدمات'!J:J)","v":0},{"$f":"SUMIF('التحصيل من العميل'!C:C,A31,'التحصيل من العميل'!D:D)","v":0},0]
[null,null,null,{"$f":"SUMIF('فواتير المبيعات'!C:C,A32,'فواتير المبيعات'!L:L)+SUMIF('يوميه الخدمات'!C:C,A32,'يوميه الخدمات'!J:J)","v":0},{"$f":"SUMIF('التحصيل من العميل'!C:C,A32,'التحصيل من العميل'!D:D)","v":0},0]
[null,null,null,{"$f":"SUMIF('فواتير المبيعات'!C:C,A33,'فواتير المبيعات'!L:L)+SUMIF('يوميه الخدمات'!C:C,A33,'يوميه الخدمات'!J:J)","v":0},{"$f":"SUMIF('التحصيل من العميل'!C:C,A33,'التحصيل من العميل'!D:D)","v":0},0]
[null,null,null,{"$f":"SUMIF('فواتير المبيعات'!C:C,A34,'فواتير المبيعات'!L:L)+SUMIF('يوميه الخدمات'!C:C,A34,'يوميه الخدمات'!J:J)","v":0},{"$f":"SUMIF('التحصيل من العميل'!C:C,A34,'التحصيل من العميل'!D:D)","v":0},0]
[null,null,null,{"$f":"SUMIF('فواتير المبيعات'!C:C,A35,'فواتير المبيعات'!L:L)+SUMIF('يوميه الخدمات'!C:C,A35,'يوميه الخدمات'!J:J)","v":0},{"$f":"SUMIF('التحصيل من العميل'!C:C,A35,'التحصيل من العميل'!D:D)","v":0},0]
[null,null,null,{"$f":"SUMIF('فواتير المبيعات'!C:C,A36,'فواتير المبيعات'!L:L)+SUMIF('يوميه الخدمات'!C:C,A36,'يوميه الخدمات'!J:J)","v":0},{"$f":"SUMIF('التحصيل من العميل'!C:C,A36,'التحصيل من العميل'!D:D)","v":0},0]
[null,null,null,{"$f":"SUMIF('فواتير المبيعات'!C:C,A37,'فواتير المبيعات'!L:L)+SUMIF('يوميه الخدمات'!C:C,A37,'يوميه الخدمات'!J:J)","v":0},{"$f":"SUMIF('التحصيل من العميل'!C:C,A37,'التحصيل من العميل'!D:D)","v":0},0]
[null,null,null,{"$f":"SUMIF('فواتير المبيعات'!C:C,A38,'فواتير المبيعات'!L:L)+SUMIF('يوميه الخدمات'!C:C,A38,'يوميه الخدمات'!J:J)","v":0},{"$f":"SUMIF('التحصيل من العميل'!C:C,A38,'التحصيل من العميل'!D:D)","v":0},0]
[null,null,null,{"$f":"SUMIF('فواتير المبيعات'!C:C,A39,'فواتير المبيعات'!L:L)+SUMIF('يوميه الخدمات'!C:C,A39,'يوميه الخدمات'!J:J)","v":0},{"$f":"SUMIF('التحصيل من العميل'!C:C,A39,'التحصيل من العميل'!D:D)","v":0},0]
[null,null,null,{"$f":"SUMIF('فواتير المبيعات'!C:C,A40,'فواتير المبيعات'!L:L)+SUMIF('يوميه الخدمات'!C:C,A40,'يوميه الخدمات'!J:J)","v":0},{"$f":"SUMIF('التحصيل من العميل'!C:C,A40,'التحصيل من العميل'!D:D)","v":0},0]
[null,null,null,{"$f":"SUMIF('فواتير المبيعات'!C:C,A41,'فواتير المبيعات'!L:L)+SUMIF('يوميه الخدمات'!C:C,A41,'يوميه الخدمات'!J:J)","v":0},{"$f":"SUMIF('التحصيل من العميل'!C:C,A41,'التحصيل من العميل'!D:D)","v":0},0]
[null,null,null,{"$f":"SUMIF('فواتير المبيعات'!C:C,A42,'فواتير المبيعات'!L:L)+SUMIF('يوميه الخدمات'!C:C,A42,'يوميه الخدمات'!J:J)","v":0},{"$f":"SUMIF('التحصيل من العميل'!C:C,A42,'التحصيل من العميل'!D:D)","v":0},0]
[null,null,null,{"$f":"SUMIF('فواتير المبيعات'!C:C,A43,'فواتير المبيعات'!L:L)+SUMIF('يوميه الخدمات'!C:C,A43,'يوميه الخدمات'!J:J)","v":0},{"$f":"SUMIF('التحصيل من العميل'!C:C,A43,'التحصيل من العميل'!D:D)","v":0},0]
[null,null,null,{"$f":"SUMIF('فواتير المبيعات'!C:C,A44,'فواتير المبيعات'!L:L)+SUMIF('يوميه الخدمات'!C:C,A44,'يوميه الخدمات'!J:J)","v":0},{"$f":"SUMIF('التحصيل من العميل'!C:C,A44,'التحصيل من العميل'!D:D)","v":0},0]
[null,null,null,{"$f":"SUMIF('فواتير المبيعات'!C:C,A45,'فواتير المبيعات'!L:L)+SUMIF('يوميه الخدمات'!C:C,A45,'يوميه الخدمات'!J:J)","v":0},{"$f":"SUMIF('التحصيل من العميل'!C:C,A45,'التحصيل من العميل'!D:D)","v":0},0]
[null,null,null,{"$f":"SUMIF('فواتير المبيعات'!C:C,A46,'فواتير المبيعات'!L:L)+SUMIF('يوميه الخدمات'!C:C,A46,'يوميه الخدمات'!J:J)","v":0},{"$f":"SUMIF('التحصيل من العميل'!C:C,A46,'التحصيل من العميل'!D:D)","v":0},0]
[null,null,null,{"$f":"SUMIF('فواتير المبيعات'!C:C,A47,'فواتير المبيعات'!L:L)+SUMIF('يوميه الخدمات'!C:C,A47,'يوميه الخدمات'!J:J)","v":0},{"$f":"SUMIF('التحصيل من العميل'!C:C,A47,'التحصيل من العميل'!D:D)","v":0},0]
[null,null,null,{"$f":"SUMIF('فواتير المبيعات'!C:C,A48,'فواتير المبيعات'!L:L)+SUMIF('يوميه الخدمات'!C:C,A48,'يوميه الخدمات'!J:J)","v":0},{"$f":"SUMIF('التحصيل من العميل'!C:C,A48,'التحصيل من العميل'!D:D)","v":0},0]
[null,null,null,{"$f":"SUMIF('فواتير المبيعات'!C:C,A49,'فواتير المبيعات'!L:L)+SUMIF('يوميه الخدمات'!C:C,A49,'يوميه الخدمات'!J:J)","v":0},{"$f":"SUMIF('التحصيل من العميل'!C:C,A49,'التحصيل من العميل'!D:D)","v":0},0]
[null,null,null,{"$f":"SUMIF('فواتير المبيعات'!C:C,A50,'فواتير المبيعات'!L:L)+SUMIF('يوميه الخدمات'!C:C,A50,'يوميه الخدمات'!J:J)","v":0},{"$f":"SUMIF('التحصيل من العميل'!C:C,A50,'التحصيل من العميل'!D:D)","v":0},0]
[null,null,null,{"$f":"SUMIF('فواتير المبيعات'!C:C,A51,'فواتير المبيعات'!L:L)+SUMIF('يوميه الخدمات'!C:C,A51,'يوميه الخدمات'!J:J)","v":0},{"$f":"SUMIF('التحصيل من العميل'!C:C,A51,'التحصيل من العميل'!D:D)","v":0},0]
[null,null,null,{"$f":"SUMIF('فواتير المبيعات'!C:C,A52,'فواتير المبيعات'!L:L)+SUMIF('يوميه الخدمات'!C:C,A52,'يوميه الخدمات'!J:J)","v":0},{"$f":"SUMIF('التحصيل من العميل'!C:C,A52,'التحصيل من العميل'!D:D)","v":0},0]
[null,null,null,{"$f":"SUMIF('فواتير المبيعات'!C:C,A53,'فواتير المبيعات'!L:L)+SUMIF('يوميه الخدمات'!C:C,A53,'يوميه الخدمات'!J:J)","v":0},{"$f":"SUMIF('التحصيل من العميل'!C:C,A53,'التحصيل من العميل'!D:D)","v":0},0]
[null,null,null,{"$f":"SUMIF('فواتير المبيعات'!C:C,A54,'فواتير المبيعات'!L:L)+SUMIF('يوميه الخدمات'!C:C,A54,'يوميه الخدمات'!J:J)","v":0},{"$f":"SUMIF('التحصيل من العميل'!C:C,A54,'التحصيل من العميل'!D:D)","v":0},0]
[null,null,null,{"$f":"SUMIF('فواتير المبيعات'!C:C,A55,'فواتير المبيعات'!L:L)+SUMIF('يوميه الخدمات'!C:C,A55,'يوميه الخدمات'!J:J)","v":0},{"$f":"SUMIF('التحصيل من العميل'!C:C,A55,'التحصيل من العميل'!D:D)","v":0},0]
[null,null,null,{"$f":"SUMIF('فواتير المبيعات'!C:C,A56,'فواتير المبيعات'!L:L)+SUMIF('يوميه الخدمات'!C:C,A56,'يوميه الخدمات'!J:J)","v":0},{"$f":"SUMIF('التحصيل من العميل'!C:C,A56,'التحصيل من العميل'!D:D)","v":0},0]
[null,null,null,{"$f":"SUMIF('فواتير المبيعات'!C:C,A57,'فواتير المبيعات'!L:L)+SUMIF('يوميه الخدمات'!C:C,A57,'يوميه الخدمات'!J:J)","v":0},{"$f":"SUMIF('التحصيل من العميل'!C:C,A57,'التحصيل من العميل'!D:D)","v":0},0]
[null,null,null,{"$f":"SUMIF('فواتير المبيعات'!C:C,A58,'فواتير المبيعات'!L:L)+SUMIF('يوميه الخدمات'!C:C,A58,'يوميه الخدمات'!J:J)","v":0},{"$f":"SUMIF('التحصيل من العميل'!C:C,A58,'التحصيل من العميل'!D:D)","v":0},0]
[null,null,null,{"$f":"SUMIF('فواتير المبيعات'!C:C,A59,'فواتير المبيعات'!L:L)+SUMIF('يوميه الخدمات'!C:C,A59,'يوميه الخدمات'!J:J)","v":0},{"$f":"SUMIF('التحصيل من العميل'!C:C,A59,'التحصيل من العميل'!D:D)","v":0},0]
[null,null,null,{"$f":"SUMIF('فواتير المبيعات'!C:C,A60,'فواتير المبيعات'!L:L)+SUMIF('يوميه الخدمات'!C:C,A60,'يوميه الخدمات'!J:J)","v":0},{"$f":"SUMIF('التحصيل من العميل'!C:C,A60,'التحصيل من العميل'!D:D)","v":0},0]
[null,null,null,{"$f":"SUMIF('فواتير المبيعات'!C:C,A61,'فواتير المبيعات'!L:L)+SUMIF('يوميه الخدمات'!C:C,A61,'يوميه الخدمات'!J:J)","v":0},{"$f":"SUMIF('التحصيل من العميل'!C:C,A61,'التحصيل من العميل'!D:D)","v":0},0]
[null,null,null,{"$f":"SUMIF('فواتير المبيعات'!C:C,A62,'فواتير المبيعات'!L:L)+SUMIF('يوميه الخدمات'!C:C,A62,'يوميه الخدمات'!J:J)","v":0},{"$f":"SUMIF('التحصيل من العميل'!C:C,A62,'التحصيل من العميل'!D:D)","v":0},0]
[null,null,null,{"$f":"SUMIF('فواتير المبيعات'!C:C,A63,'فواتير المبيعات'!L:L)+SUMIF('يوميه الخدمات'!C:C,A63,'يوميه الخدمات'!J:J)","v":0},{"$f":"SUMIF('التحصيل من العميل'!C:C,A63,'التحصيل من العميل'!D:D)","v":0},0]
[null,null,null,{"$f":"SUMIF('فواتير المبيعات'!C:C,A64,'فواتير المبيعات'!L:L)+SUMIF('يوميه الخدمات'!C:C,A64,'يوميه الخدمات'!J:J)","v":0},{"$f":"SUMIF('التحصيل من العميل'!C:C,A64,'التحصيل من العميل'!D:D)","v":0},0]
[null,null,null,{"$f":"SUMIF('فواتير المبيعات'!C:C,A65,'فواتير المبيعات'!L:L)+SUMIF('يوميه الخدمات'!C:C,A65,'يوميه الخدمات'!J:J)","v":0},{"$f":"SUMIF('التحصيل من العميل'!C:C,A65,'التحصيل من العميل'!D:D)","v":0},0]
[null,null,null,{"$f":"SUMIF('فواتير المبيعات'!C:C,A66,'فواتير المبيعات'!L:L)+SUMIF('يوميه الخدمات'!C:C,A66,'يوميه الخدمات'!J:J)","v":0},{"$f":"SUMIF('التحصيل من العميل'!C:C,A66,'التحصيل من العميل'!D:D)","v":0},0]
[null,null,null,{"$f":"SUMIF('فواتير المبيعات'!C:C,A67,'فواتير المبيعات'!L:L)+SUMIF('يوميه الخدمات'!C:C,A67,'يوميه الخدمات'!J:J)","v":0},{"$f":"SUMIF('التحصيل من العميل'!C:C,A67,'التحصيل من العميل'!D:D)","v":0},0]
[null,null,null,{"$f":"SUMIF('فواتير المبيعات'!C:C,A68,'فواتير المبيعات'!L:L)+SUMIF('يوميه الخدمات'!C:C,A68,'يوميه الخدمات'!J:J)","v":0},{"$f":"SUMIF('التحصيل من العميل'!C:C,A68,'التحصيل من العميل'!D:D)","v":0},0]
[null,null,null,{"$f":"SUMIF('فواتير المبيعات'!C:C,A69,'فواتير المبيعات'!L:L)+SUMIF('يوميه الخدمات'!C:C,A69,'يوميه الخدمات'!J:J)","v":0},{"$f":"SUMIF('التحصيل من العميل'!C:C,A69,'التحصيل من العميل'!D:D)","v":0},0]
[null,null,null,{"$f":"SUMIF('فواتير المبيعات'!C:C,A70,'فواتير المبيعات'!L:L)+SUMIF('يوميه الخدمات'!C:C,A70,'يوميه الخدمات'!J:J)","v":0},{"$f":"SUMIF('التحصيل من العميل'!C:C,A70,'التحصيل من العميل'!D:D)","v":0},0]
[null,null,null,{"$f":"SUMIF('فواتير المبيعات'!C:C,A71,'فواتير المبيعات'!L:L)+SUMIF('يوميه الخدمات'!C:C,A71,'يوميه الخدمات'!J:J)","v":0},{"$f":"SUMIF('التحصيل من العميل'!C:C,A71,'التحصيل من العميل'!D:D)","v":0},0]
[null,null,null,{"$f":"SUMIF('فواتير المبيعات'!C:C,A72,'فواتير المبيعات'!L:L)+SUMIF('يوميه الخدمات'!C:C,A72,'يوميه الخدمات'!J:J)","v":0},{"$f":"SUMIF('التحصيل من العميل'!C:C,A72,'التحصيل من العميل'!D:D)","v":0},0]
[null,null,null,{"$f":"SUMIF('فواتير المبيعات'!C:C,A73,'فواتير المبيعات'!L:L)+SUMIF('يوميه الخدمات'!C:C,A73,'يوميه الخدمات'!J:J)","v":0},{"$f":"SUMIF('التحصيل من العميل'!C:C,A73,'التحصيل من العميل'!D:D)","v":0},0]
[null,null,null,{"$f":"SUMIF('فواتير المبيعات'!C:C,A74,'فواتير المبيعات'!L:L)+SUMIF('يوميه الخدمات'!C:C,A74,'يوميه الخدمات'!J:J)","v":0},{"$f":"SUMIF('التحصيل من العميل'!C:C,A74,'التحصيل من العميل'!D:D)","v":0},0]
[null,null,null,{"$f":"SUMIF('فواتير المبيعات'!C:C,A75,'فواتير المبيعات'!L:L)+SUMIF('يوميه الخدمات'!C:C,A75,'يوميه الخدمات'!J:J)","v":0},{"$f":"SUMIF('التحصيل من العميل'!C:C,A75,'التحصيل من العميل'!D:D)","v":0},0]
[null,null,null,{"$f":"SUMIF('فواتير المبيعات'!C:C,A76,'فواتير المبيعات'!L:L)+SUMIF('يوميه الخدمات'!C:C,A76,'يوميه الخدمات'!J:J)","v":0},{"$f":"SUMIF('التحصيل من العميل'!C:C,A76,'التحصيل من العميل'!D:D)","v":0},0]
[null,null,null,{"$f":"SUMIF('فواتير المبيعات'!C:C,A77,'فواتير المبيعات'!L:L)+SUMIF('يوميه الخدمات'!C:C,A77,'يوميه الخدمات'!J:J)","v":0},{"$f":"SUMIF('التحصيل من العميل'!C:C,A77,'التحصيل من العميل'!D:D)","v":0},0]
[null,null,null,{"$f":"SUMIF('فواتير المبيعات'!C:C,A78,'فواتير المبيعات'!L:L)+SUMIF('يوميه الخدمات'!C:C,A78,'يوميه الخدمات'!J:J)","v":0},{"$f":"SUMIF('التحصيل من العميل'!C:C,A78,'التحصيل من العميل'!D:D)","v":0},0]
[null,null,null,{"$f":"SUMIF('فواتير المبيعات'!C:C,A79,'فواتير المبيعات'!L:L)+SUMIF('يوميه الخدمات'!C:C,A79,'يوميه الخدمات'!J:J)","v":0},{"$f":"SUMIF('التحصيل من العميل'!C:C,A79,'التحصيل من العميل'!D:D)","v":0},0]
[null,null,null,{"$f":"SUMIF('فواتير المبيعات'!C:C,A80,'فواتير المبيعات'!L:L)+SUMIF('يوميه الخدمات'!C:C,A80,'يوميه الخدمات'!J:J)","v":0},{"$f":"SUMIF('التحصيل من العميل'!C:C,A80,'التحصيل من العميل'!D:D)","v":0},0]
[null,null,null,{"$f":"SUMIF('فواتير المبيعات'!C:C,A81,'فواتير المبيعات'!L:L)+SUMIF('يوميه الخدمات'!C:C,A81,'يوميه الخدمات'!J:J)","v":0},{"$f":"SUMIF('التحصيل من العميل'!C:C,A81,'التحصيل من العميل'!D:D)","v":0},0]
[null,null,null,{"$f":"SUMIF('فواتير المبيعات'!C:C,A82,'فواتير المبيعات'!L:L)+SUMIF('يوميه الخدمات'!C:C,A82,'يوميه الخدمات'!J:J)","v":0},{"$f":"SUMIF('التحصيل من العميل'!C:C,A82,'التحصيل من العميل'!D:D)","v":0},0]
[null,null,null,{"$f":"SUMIF('فواتير المبيعات'!C:C,A83,'فواتير المبيعات'!L:L)+SUMIF('يوميه الخدمات'!C:C,A83,'يوميه الخدمات'!J:J)","v":0},{"$f":"SUMIF('التحصيل من العميل'!C:C,A83,'التحصيل من العميل'!D:D)","v":0},0]
[null,null,null,{"$f":"SUMIF('فواتير المبيعات'!C:C,A84,'فواتير المبيعات'!L:L)+SUMIF('يوميه الخدمات'!C:C,A84,'يوميه الخدمات'!J:J)","v":0},{"$f":"SUMIF('التحصيل من العميل'!C:C,A84,'التحصيل من العميل'!D:D)","v":0},0]
[null,null,null,{"$f":"SUMIF('فواتير المبيعات'!C:C,A85,'فواتير المبيعات'!L:L)+SUMIF('يوميه الخدمات'!C:C,A85,'يوميه الخدمات'!J:J)","v":0},{"$f":"SUMIF('التحصيل من العميل'!C:C,A85,'التحصيل من العميل'!D:D)","v":0},0]
[null,null,null,{"$f":"SUMIF('فواتير المبيعات'!C:C,A86,'فواتير المبيعات'!L:L)+SUMIF('يوميه الخدمات'!C:C,A86,'يوميه الخدمات'!J:J)","v":0},{"$f":"SUMIF('التحصيل من العميل'!C:C,A86,'التحصيل من العميل'!D:D)","v":0},0]
[null,null,null,{"$f":"SUMIF('فواتير المبيعات'!C:C,A87,'فواتير المبيعات'!L:L)+SUMIF('يوميه الخدمات'!C:C,A87,'يوميه الخدمات'!J:J)","v":0},{"$f":"SUMIF('التحصيل من العميل'!C:C,A87,'التحصيل من العميل'!D:D)","v":0},0]
[null,null,null,{"$f":"SUMIF('فواتير المبيعات'!C:C,A88,'فواتير المبيعات'!L:L)+SUMIF('يوميه الخدمات'!C:C,A88,'يوميه الخدمات'!J:J)","v":0},{"$f":"SUMIF('التحصيل من العميل'!C:C,A88,'التحصيل من العميل'!D:D)","v":0},0]
[null,null,null,{"$f":"SUMIF('فواتير المبيعات'!C:C,A89,'فواتير المبيعات'!L:L)+SUMIF('يوميه الخدمات'!C:C,A89,'يوميه الخدمات'!J:J)","v":0},{"$f":"SUMIF('التحصيل من العميل'!C:C,A89,'التحصيل من العميل'!D:D)","v":0},0]
[null,null,null,{"$f":"SUMIF('فواتير المبيعات'!C:C,A90,'فواتير المبيعات'!L:L)+SUMIF('يوميه الخدمات'!C:C,A90,'يوميه الخدمات'!J:J)","v":0},{"$f":"SUMIF('التحصيل من العميل'!C:C,A90,'التحصيل من العميل'!D:D)","v":0},0]
[null,null,null,{"$f":"SUMIF('فواتير المبيعات'!C:C,A91,'فواتير المبيعات'!L:L)+SUMIF('يوميه الخدمات'!C:C,A91,'يوميه الخدمات'!J:J)","v":0},{"$f":"SUMIF('التحصيل من العميل'!C:C,A91,'التحصيل من العميل'!D:D)","v":0},0]
[null,null,{"$f":"SUM(C3:C91)","v":0},2052,2052,0]

{"sheet":"قائمه المورديين","index":2,"n_rows":84,"n_cols":6,"rows_kept":84,"cut":false,"hidden":false,"merged":[[0,0,0,5]]}
["قائمه المورديين"]
["اســـم المــــورد","بيانات المــــورد","الرصيد الافتتاحي","مدين","دائن","الرصيد الحالي"]
["مورد 1",null,null,{"$f":"SUMIF('السداد للمورد'!C:C,A3,'السداد للمورد'!D:D)","v":0},{"$f":"SUMIF('فواتير المشتريات'!C:C,A3,'فواتير المشتريات'!L:L)","v":0},{"$f":"C3+E3-D3","v":0}]
["مورد 2",null,null,{"$f":"SUMIF('السداد للمورد'!C:C,A4,'السداد للمورد'!D:D)","v":102.6},{"$f":"SUMIF('فواتير المشتريات'!C:C,A4,'فواتير المشتريات'!L:L)","v":102.6},0]
["مورد 3",null,null,{"$f":"SUMIF('السداد للمورد'!C:C,A5,'السداد للمورد'!D:D)","v":0},{"$f":"SUMIF('فواتير المشتريات'!C:C,A5,'فواتير المشتريات'!L:L)","v":0},0]
["مورد 4",null,null,{"$f":"SUMIF('السداد للمورد'!C:C,A6,'السداد للمورد'!D:D)","v":0},{"$f":"SUMIF('فواتير المشتريات'!C:C,A6,'فواتير المشتريات'!L:L)","v":0},0]
["مورد 5",null,null,{"$f":"SUMIF('السداد للمورد'!C:C,A7,'السداد للمورد'!D:D)","v":0},{"$f":"SUMIF('فواتير المشتريات'!C:C,A7,'فواتير المشتريات'!L:L)","v":0},0]
[null,null,null,{"$f":"SUMIF('السداد للمورد'!C:C,A8,'السداد للمورد'!D:D)","v":0},{"$f":"SUMIF('فواتير المشتريات'!C:C,A8,'فواتير المشتريات'!L:L)","v":0},0]
[null,null,null,{"$f":"SUMIF('السداد للمورد'!C:C,A9,'السداد للمورد'!D:D)","v":0},{"$f":"SUMIF('فواتير المشتريات'!C:C,A9,'فواتير المشتريات'!L:L)","v":0},0]
[null,null,null,{"$f":"SUMIF('السداد للمورد'!C:C,A10,'السداد للمورد'!D:D)","v":0},{"$f":"SUMIF('فواتير المشتريات'!C:C,A10,'فواتير المشتريات'!L:L)","v":0},0]
[null,null,null,{"$f":"SUMIF('السداد للمورد'!C:C,A11,'السداد للمورد'!D:D)","v":0},{"$f":"SUMIF('فواتير المشتريات'!C:C,A11,'فواتير المشتريات'!L:L)","v":0},0]
[null,null,null,{"$f":"SUMIF('السداد للمورد'!C:C,A12,'السداد للمورد'!D:D)","v":0},{"$f":"SUMIF('فواتير المشتريات'!C:C,A12,'فواتير المشتريات'!L:L)","v":0},0]
[null,null,null,{"$f":"SUMIF('السداد للمورد'!C:C,A13,'السداد للمورد'!D:D)","v":0},{"$f":"SUMIF('فواتير المشتريات'!C:C,A13,'فواتير المشتريات'!L:L)","v":0},0]
[null,null,null,{"$f":"SUMIF('السداد للمورد'!C:C,A14,'السداد للمورد'!D:D)","v":0},{"$f":"SUMIF('فواتير المشتريات'!C:C,A14,'فواتير المشتريات'!L:L)","v":0},0]
[null,null,null,{"$f":"SUMIF('السداد للمورد'!C:C,A15,'السداد للمورد'!D:D)","v":0},{"$f":"SUMIF('فواتير المشتريات'!C:C,A15,'فواتير المشتريات'!L:L)","v":0},0]
[null,null,null,{"$f":"SUMIF('السداد للمورد'!C:C,A16,'السداد للمورد'!D:D)","v":0},{"$f":"SUMIF('فواتير المشتريات'!C:C,A16,'فواتير المشتريات'!L:L)","v":0},0]
[null,null,null,{"$f":"SUMIF('السداد للمورد'!C:C,A17,'السداد للمورد'!D:D)","v":0},{"$f":"SUMIF('فواتير المشتريات'!C:C,A17,'فواتير المشتريات'!L:L)","v":0},0]
[null,null,null,{"$f":"SUMIF('السداد للمورد'!C:C,A18,'السداد للمورد'!D:D)","v":0},{"$f":"SUMIF('فواتير المشتريات'!C:C,A18,'فواتير المشتريات'!L:L)","v":0},0]
[null,null,null,{"$f":"SUMIF('السداد للمورد'!C:C,A19,'السداد للمورد'!D:D)","v":0},{"$f":"SUMIF('فواتير المشتريات'!C:C,A19,'فواتير المشتريات'!L:L)","v":0},0]
[null,null,null,{"$f":"SUMIF('السداد للمورد'!C:C,A20,'السداد للمورد'!D:D)","v":0},{"$f":"SUMIF('فواتير المشتريات'!C:C,A20,'فواتير المشتريات'!L:L)","v":0},0]
[null,null,null,{"$f":"SUMIF('السداد للمورد'!C:C,A21,'السداد للمورد'!D:D)","v":0},{"$f":"SUMIF('فواتير المشتريات'!C:C,A21,'فواتير المشتريات'!L:L)","v":0},0]
[null,null,null,{"$f":"SUMIF('السداد للمورد'!C:C,A22,'السداد للمورد'!D:D)","v":0},{"$f":"SUMIF('فواتير المشتريات'!C:C,A22,'فواتير المشتريات'!L:L)","v":0},0]
[null,null,null,{"$f":"SUMIF('السداد للمورد'!C:C,A23,'السداد للمورد'!D:D)","v":0},{"$f":"SUMIF('فواتير المشتريات'!C:C,A23,'فواتير المشتريات'!L:L)","v":0},0]
[null,null,null,{"$f":"SUMIF('السداد للمورد'!C:C,A24,'السداد للمورد'!D:D)","v":0},{"$f":"SUMIF('فواتير المشتريات'!C:C,A24,'فواتير المشتريات'!L:L)","v":0},0]
[null,null,null,{"$f":"SUMIF('السداد للمورد'!C:C,A25,'السداد للمورد'!D:D)","v":0},{"$f":"SUMIF('فواتير المشتريات'!C:C,A25,'فواتير المشتريات'!L:L)","v":0},0]
[null,null,null,{"$f":"SUMIF('السداد للمورد'!C:C,A26,'السداد للمورد'!D:D)","v":0},{"$f":"SUMIF('فواتير المشتريات'!C:C,A26,'فواتير المشتريات'!L:L)","v":0},0]
[null,null,null,{"$f":"SUMIF('السداد للمورد'!C:C,A27,'السداد للمورد'!D:D)","v":0},{"$f":"SUMIF('فواتير المشتريات'!C:C,A27,'فواتير المشتريات'!L:L)","v":0},0]
[null,null,null,{"$f":"SUMIF('السداد للمورد'!C:C,A28,'السداد للمورد'!D:D)","v":0},{"$f":"SUMIF('فواتير المشتريات'!C:C,A28,'فواتير المشتريات'!L:L)","v":0},0]
[null,null,null,{"$f":"SUMIF('السداد للمورد'!C:C,A29,'السداد للمورد'!D:D)","v":0},{"$f":"SUMIF('فواتير المشتريات'!C:C,A29,'فواتير المشتريات'!L:L)","v":0},0]
[null,null,null,{"$f":"SUMIF('السداد للمورد'!C:C,A30,'السداد للمورد'!D:D)","v":0},{"$f":"SUMIF('فواتير المشتريات'!C:C,A30,'فواتير المشتريات'!L:L)","v":0},0]
[null,null,null,{"$f":"SUMIF('السداد للمورد'!C:C,A31,'السداد للمورد'!D:D)","v":0},{"$f":"SUMIF('فواتير المشتريات'!C:C,A31,'فواتير المشتريات'!L:L)","v":0},0]
[null,null,null,{"$f":"SUMIF('السداد للمورد'!C:C,A32,'السداد للمورد'!D:D)","v":0},{"$f":"SUMIF('فواتير المشتريات'!C:C,A32,'فواتير المشتريات'!L:L)","v":0},0]
[null,null,null,{"$f":"SUMIF('السداد للمورد'!C:C,A33,'السداد للمورد'!D:D)","v":0},{"$f":"SUMIF('فواتير المشتريات'!C:C,A33,'فواتير المشتريات'!L:L)","v":0},0]
[null,null,null,{"$f":"SUMIF('السداد للمورد'!C:C,A34,'السداد للمورد'!D:D)","v":0},{"$f":"SUMIF('فواتير المشتريات'!C:C,A34,'فواتير المشتريات'!L:L)","v":0},0]
[null,null,null,{"$f":"SUMIF('السداد للمورد'!C:C,A35,'السداد للمورد'!D:D)","v":0},{"$f":"SUMIF('فواتير المشتريات'!C:C,A35,'فواتير المشتريات'!L:L)","v":0},0]
[null,null,null,{"$f":"SUMIF('السداد للمورد'!C:C,A36,'السداد للمورد'!D:D)","v":0},{"$f":"SUMIF('فواتير المشتريات'!C:C,A36,'فواتير المشتريات'!L:L)","v":0},0]
[null,null,null,{"$f":"SUMIF('السداد للمورد'!C:C,A37,'السداد للمورد'!D:D)","v":0},{"$f":"SUMIF('فواتير المشتريات'!C:C,A37,'فواتير المشتريات'!L:L)","v":0},0]
[null,null,null,{"$f":"SUMIF('السداد للمورد'!C:C,A38,'السداد للمورد'!D:D)","v":0},{"$f":"SUMIF('فواتير المشتريات'!C:C,A38,'فواتير المشتريات'!L:L)","v":0},0]
[null,null,null,{"$f":"SUMIF('السداد للمورد'!C:C,A39,'السداد للمورد'!D:D)","v":0},{"$f":"SUMIF('فواتير المشتريات'!C:C,A39,'فواتير المشتريات'!L:L)","v":0},0]
[null,null,null,{"$f":"SUMIF('السداد للمورد'!C:C,A40,'السداد للمورد'!D:D)","v":0},{"$f":"SUMIF('فواتير المشتريات'!C:C,A40,'فواتير المشتريات'!L:L)","v":0},0]
[null,null,null,{"$f":"SUMIF('السداد للمورد'!C:C,A41,'السداد للمورد'!D:D)","v":0},{"$f":"SUMIF('فواتير المشتريات'!C:C,A41,'فواتير المشتريات'!L:L)","v":0},0]
[null,null,null,{"$f":"SUMIF('السداد للمورد'!C:C,A42,'السداد للمورد'!D:D)","v":0},{"$f":"SUMIF('فواتير المشتريات'!C:C,A42,'فواتير المشتريات'!L:L)","v":0},0]
[null,null,null,{"$f":"SUMIF('السداد للمورد'!C:C,A43,'السداد للمورد'!D:D)","v":0},{"$f":"SUMIF('فواتير المشتريات'!C:C,A43,'فواتير المشتريات'!L:L)","v":0},0]
[null,null,null,{"$f":"SUMIF('السداد للمورد'!C:C,A44,'السداد للمورد'!D:D)","v":0},{"$f":"SUMIF('فواتير المشتريات'!C:C,A44,'فواتير المشتريات'!L:L)","v":0},0]
[null,null,null,{"$f":"SUMIF('السداد للمورد'!C:C,A45,'السداد للمورد'!D:D)","v":0},{"$f":"SUMIF('فواتير المشتريات'!C:C,A45,'فواتير المشتريات'!L:L)","v":0},0]
[null,null,null,{"$f":"SUMIF('السداد للمورد'!C:C,A46,'السداد للمورد'!D:D)","v":0},{"$f":"SUMIF('فواتير المشتريات'!C:C,A46,'فواتير المشتريات'!L:L)","v":0},0]
[null,null,null,{"$f":"SUMIF('السداد للمورد'!C:C,A47,'السداد للمورد'!D:D)","v":0},{"$f":"SUMIF('فواتير المشتريات'!C:C,A47,'فواتير المشتريات'!L:L)","v":0},0]
[null,null,null,{"$f":"SUMIF('السداد للمورد'!C:C,A48,'السداد للمورد'!D:D)","v":0},{"$f":"SUMIF('فواتير المشتريات'!C:C,A48,'فواتير المشتريات'!L:L)","v":0},0]
[null,null,null,{"$f":"SUMIF('السداد للمورد'!C:C,A49,'السداد للمورد'!D:D)","v":0},{"$f":"SUMIF('فواتير المشتريات'!C:C,A49,'فواتير المشتريات'!L:L)","v":0},0]
[null,null,null,{"$f":"SUMIF('السداد للمورد'!C:C,A50,'السداد للمورد'!D:D)","v":0},{"$f":"SUMIF('فواتير المشتريات'!C:C,A50,'فواتير المشتريات'!L:L)","v":0},0]
[null,null,null,{"$f":"SUMIF('السداد للمورد'!C:C,A51,'السداد للمورد'!D:D)","v":0},{"$f":"SUMIF('فواتير المشتريات'!C:C,A51,'فواتير المشتريات'!L:L)","v":0},0]
[null,null,null,{"$f":"SUMIF('السداد للمورد'!C:C,A52,'السداد للمورد'!D:D)","v":0},{"$f":"SUMIF('فواتير المشتريات'!C:C,A52,'فواتير المشتريات'!L:L)","v":0},0]
[null,null,null,{"$f":"SUMIF('السداد للمورد'!C:C,A53,'السداد للمورد'!D:D)","v":0},{"$f":"SUMIF('فواتير المشتريات'!C:C,A53,'فواتير المشتريات'!L:L)","v":0},0]
[null,null,null,{"$f":"SUMIF('السداد للمورد'!C:C,A54,'السداد للمورد'!D:D)","v":0},{"$f":"SUMIF('فواتير المشتريات'!C:C,A54,'فواتير المشتريات'!L:L)","v":0},0]
[null,null,null,{"$f":"SUMIF('السداد للمورد'!C:C,A55,'السداد للمورد'!D:D)","v":0},{"$f":"SUMIF('فواتير المشتريات'!C:C,A55,'فواتير المشتريات'!L:L)","v":0},0]
[null,null,null,{"$f":"SUMIF('السداد للمورد'!C:C,A56,'السداد للمورد'!D:D)","v":0},{"$f":"SUMIF('فواتير المشتريات'!C:C,A56,'فواتير المشتريات'!L:L)","v":0},0]
[null,null,null,{"$f":"SUMIF('السداد للمورد'!C:C,A57,'السداد للمورد'!D:D)","v":0},{"$f":"SUMIF('فواتير المشتريات'!C:C,A57,'فواتير المشتريات'!L:L)","v":0},0]
[null,null,null,{"$f":"SUMIF('السداد للمورد'!C:C,A58,'السداد للمورد'!D:D)","v":0},{"$f":"SUMIF('فواتير المشتريات'!C:C,A58,'فواتير المشتريات'!L:L)","v":0},0]
[null,null,null,{"$f":"SUMIF('السداد للمورد'!C:C,A59,'السداد للمورد'!D:D)","v":0},{"$f":"SUMIF('فواتير المشتريات'!C:C,A59,'فواتير المشتريات'!L:L)","v":0},0]
[null,null,null,{"$f":"SUMIF('السداد للمورد'!C:C,A60,'السداد للمورد'!D:D)","v":0},{"$f":"SUMIF('فواتير المشتريات'!C:C,A60,'فواتير المشتريات'!L:L)","v":0},0]
[null,null,null,{"$f":"SUMIF('السداد للمورد'!C:C,A61,'السداد للمورد'!D:D)","v":0},{"$f":"SUMIF('فواتير المشتريات'!C:C,A61,'فواتير المشتريات'!L:L)","v":0},0]
[null,null,null,{"$f":"SUMIF('السداد للمورد'!C:C,A62,'السداد للمورد'!D:D)","v":0},{"$f":"SUMIF('فواتير المشتريات'!C:C,A62,'فواتير المشتريات'!L:L)","v":0},0]
[null,null,null,{"$f":"SUMIF('السداد للمورد'!C:C,A63,'السداد للمورد'!D:D)","v":0},{"$f":"SUMIF('فواتير المشتريات'!C:C,A63,'فواتير المشتريات'!L:L)","v":0},0]
[null,null,null,{"$f":"SUMIF('السداد للمورد'!C:C,A64,'السداد للمورد'!D:D)","v":0},{"$f":"SUMIF('فواتير المشتريات'!C:C,A64,'فواتير المشتريات'!L:L)","v":0},0]
[null,null,null,{"$f":"SUMIF('السداد للمورد'!C:C,A65,'السداد للمورد'!D:D)","v":0},{"$f":"SUMIF('فواتير المشتريات'!C:C,A65,'فواتير المشتريات'!L:L)","v":0},0]
[null,null,null,{"$f":"SUMIF('السداد للمورد'!C:C,A66,'السداد للمورد'!D:D)","v":0},{"$f":"SUMIF('فواتير المشتريات'!C:C,A66,'فواتير المشتريات'!L:L)","v":0},0]
[null,null,null,{"$f":"SUMIF('السداد للمورد'!C:C,A67,'السداد للمورد'!D:D)","v":0},{"$f":"SUMIF('فواتير المشتريات'!C:C,A67,'فواتير المشتريات'!L:L)","v":0},0]
[null,null,null,{"$f":"SUMIF('السداد للمورد'!C:C,A68,'السداد للمورد'!D:D)","v":0},{"$f":"SUMIF('فواتير المشتريات'!C:C,A68,'فواتير المشتريات'!L:L)","v":0},0]
[null,null,null,{"$f":"SUMIF('السداد للمورد'!C:C,A69,'السداد للمورد'!D:D)","v":0},{"$f":"SUMIF('فواتير المشتريات'!C:C,A69,'فواتير المشتريات'!L:L)","v":0},0]
[null,null,null,{"$f":"SUMIF('السداد للمورد'!C:C,A70,'السداد للمورد'!D:D)","v":0},{"$f":"SUMIF('فواتير المشتريات'!C:C,A70,'فواتير المشتريات'!L:L)","v":0},0]
[null,null,null,{"$f":"SUMIF('السداد للمورد'!C:C,A71,'السداد للمورد'!D:D)","v":0},{"$f":"SUMIF('فواتير المشتريات'!C:C,A71,'فواتير المشتريات'!L:L)","v":0},0]
[null,null,null,{"$f":"SUMIF('السداد للمورد'!C:C,A72,'السداد للمورد'!D:D)","v":0},{"$f":"SUMIF('فواتير المشتريات'!C:C,A72,'فواتير المشتريات'!L:L)","v":0},0]
[null,null,null,{"$f":"SUMIF('السداد للمورد'!C:C,A73,'السداد للمورد'!D:D)","v":0},{"$f":"SUMIF('فواتير المشتريات'!C:C,A73,'فواتير المشتريات'!L:L)","v":0},0]
[null,null,null,{"$f":"SUMIF('السداد للمورد'!C:C,A74,'السداد للمورد'!D:D)","v":0},{"$f":"SUMIF('فواتير المشتريات'!C:C,A74,'فواتير المشتريات'!L:L)","v":0},0]
[null,null,null,{"$f":"SUMIF('السداد للمورد'!C:C,A75,'السداد للمورد'!D:D)","v":0},{"$f":"SUMIF('فواتير المشتريات'!C:C,A75,'فواتير المشتريات'!L:L)","v":0},0]
[null,null,null,{"$f":"SUMIF('السداد للمورد'!C:C,A76,'السداد للمورد'!D:D)","v":0},{"$f":"SUMIF('فواتير المشتريات'!C:C,A76,'فواتير المشتريات'!L:L)","v":0},0]
[null,null,null,{"$f":"SUMIF('السداد للمورد'!C:C,A77,'السداد للمورد'!D:D)","v":0},{"$f":"SUMIF('فواتير المشتريات'!C:C,A77,'فواتير المشتريات'!L:L)","v":0},0]
[null,null,null,{"$f":"SUMIF('السداد للمورد'!C:C,A78,'السداد للمورد'!D:D)","v":0},{"$f":"SUMIF('فواتير المشتريات'!C:C,A78,'فواتير المشتريات'!L:L)","v":0},0]
[null,null,null,{"$f":"SUMIF('السداد للمورد'!C:C,A79,'السداد للمورد'!D:D)","v":0},{"$f":"SUMIF('فواتير المشتريات'!C:C,A79,'فواتير المشتريات'!L:L)","v":0},0]
[null,null,null,{"$f":"SUMIF('السداد للمورد'!C:C,A80,'السداد للمورد'!D:D)","v":0},{"$f":"SUMIF('فواتير المشتريات'!C:C,A80,'فواتير المشتريات'!L:L)","v":0},0]
[null,null,null,{"$f":"SUMIF('السداد للمورد'!C:C,A81,'السداد للمورد'!D:D)","v":0},{"$f":"SUMIF('فواتير المشتريات'!C:C,A81,'فواتير المشتريات'!L:L)","v":0},0]
[null,null,null,{"$f":"SUMIF('السداد للمورد'!C:C,A82,'السداد للمورد'!D:D)","v":0},{"$f":"SUMIF('فواتير المشتريات'!C:C,A82,'فواتير المشتريات'!L:L)","v":0},0]
[null,null,null,{"$f":"SUMIF('السداد للمورد'!C:C,A83,'السداد للمورد'!D:D)","v":0},{"$f":"SUMIF('فواتير المشتريات'!C:C,A83,'فواتير المشتريات'!L:L)","v":0},0]
[null,null,{"$f":"SUM(C3:C83)","v":0},102.6,102.6,0]

{"sheet":"قائمه الاصناف","index":3,"n_rows":50,"n_cols":10,"rows_kept":50,"cut":false,"hidden":false,"merged":[[0,0,0,9],[1,0,2,0],[1,1,2,1],[1,2,1,4],[1,5,1,6],[1,7,1,9]]}
["قائمه الاصناف"]
["اســــم الصــــنف","بيــانـــــات الصــــنف","الرصيد الافتتاحي",null,null,"حــركه الفتره",null,"الرصيد الحالي"]
[null,null,"كميه","م.ت.الوحده","القيمه","الوارد","المنصرف","كميه","م.ت.الوحده","القيمه"]
["صنف 1",null,null,null,{"$f":"C4*D4","v":0},{"$f":"SUMIF('فواتير المشتريات'!$D:$D,A4,'فواتير المشتريات'!$E:$E)","v":0},{"$f":"SUMIF('فواتير المبيعات'!$D:$D,A4,'فواتير المبيعات'!$E:$E)","v":0},{"$f":"C4+F4-G4","v":0},{"$f":"IF(H4=0,0,(E4+SUMIF('فواتير المشتريات'!$D:$D,A4,'فواتير المشتريات'!$L:$L))/(C4+F4))","v":0},{"$f":"H4*I4","v":0}]
["صنف 2",null,null,null,0,{"$f":"SUMIF('فواتير المشتريات'!$D:$D,A5,'فواتير المشتريات'!$E:$E)","v":0},{"$f":"SUMIF('فواتير المبيعات'!$D:$D,A5,'فواتير المبيعات'!$E:$E)","v":0},0,{"$f":"IF(H5=0,0,(E5+SUMIF('فواتير المشتريات'!$D:$D,A5,'فواتير المشتريات'!$L:$L))/(C5+F5))","v":0},0]
["صنف 3",null,null,null,0,{"$f":"SUMIF('فواتير المشتريات'!$D:$D,A6,'فواتير المشتريات'!$E:$E)","v":5},{"$f":"SUMIF('فواتير المبيعات'!$D:$D,A6,'فواتير المبيعات'!$E:$E)","v":2},3,{"$f":"IF(H6=0,0,(E6+SUMIF('فواتير المشتريات'!$D:$D,A6,'فواتير المشتريات'!$L:$L))/(C6+F6))","v":20.52},61.56]
["صنف 4",null,null,null,0,{"$f":"SUMIF('فواتير المشتريات'!$D:$D,A7,'فواتير المشتريات'!$E:$E)","v":0},{"$f":"SUMIF('فواتير المبيعات'!$D:$D,A7,'فواتير المبيعات'!$E:$E)","v":0},0,{"$f":"IF(H7=0,0,(E7+SUMIF('فواتير المشتريات'!$D:$D,A7,'فواتير المشتريات'!$L:$L))/(C7+F7))","v":0},0]
["صنف 5",null,null,null,0,{"$f":"SUMIF('فواتير المشتريات'!$D:$D,A8,'فواتير المشتريات'!$E:$E)","v":0},{"$f":"SUMIF('فواتير المبيعات'!$D:$D,A8,'فواتير المبيعات'!$E:$E)","v":0},0,{"$f":"IF(H8=0,0,(E8+SUMIF('فواتير المشتريات'!$D:$D,A8,'فواتير المشتريات'!$L:$L))/(C8+F8))","v":0},0]
[null,null,null,null,0,{"$f":"SUMIF('فواتير المشتريات'!$D:$D,A9,'فواتير المشتريات'!$E:$E)","v":0},{"$f":"SUMIF('فواتير المبيعات'!$D:$D,A9,'فواتير المبيعات'!$E:$E)","v":0},0,{"$f":"IF(H9=0,0,(E9+SUMIF('فواتير المشتريات'!$D:$D,A9,'فواتير المشتريات'!$L:$L))/(C9+F9))","v":0},0]
[null,null,null,null,0,{"$f":"SUMIF('فواتير المشتريات'!$D:$D,A10,'فواتير المشتريات'!$E:$E)","v":0},{"$f":"SUMIF('فواتير المبيعات'!$D:$D,A10,'فواتير المبيعات'!$E:$E)","v":0},0,{"$f":"IF(H10=0,0,(E10+SUMIF('فواتير المشتريات'!$D:$D,A10,'فواتير المشتريات'!$L:$L))/(C10+F10))","v":0},0]
[null,null,null,null,0,{"$f":"SUMIF('فواتير المشتريات'!$D:$D,A11,'فواتير المشتريات'!$E:$E)","v":0},{"$f":"SUMIF('فواتير المبيعات'!$D:$D,A11,'فواتير المبيعات'!$E:$E)","v":0},0,{"$f":"IF(H11=0,0,(E11+SUMIF('فواتير المشتريات'!$D:$D,A11,'فواتير المشتريات'!$L:$L))/(C11+F11))","v":0},0]
[null,null,null,null,0,{"$f":"SUMIF('فواتير المشتريات'!$D:$D,A12,'فواتير المشتريات'!$E:$E)","v":0},{"$f":"SUMIF('فواتير المبيعات'!$D:$D,A12,'فواتير المبيعات'!$E:$E)","v":0},0,{"$f":"IF(H12=0,0,(E12+SUMIF('فواتير المشتريات'!$D:$D,A12,'فواتير المشتريات'!$L:$L))/(C12+F12))","v":0},0]
[null,null,null,null,0,{"$f":"SUMIF('فواتير المشتريات'!$D:$D,A13,'فواتير المشتريات'!$E:$E)","v":0},{"$f":"SUMIF('فواتير المبيعات'!$D:$D,A13,'فواتير المبيعات'!$E:$E)","v":0},0,{"$f":"IF(H13=0,0,(E13+SUMIF('فواتير المشتريات'!$D:$D,A13,'فواتير المشتريات'!$L:$L))/(C13+F13))","v":0},0]
[null,null,null,null,0,{"$f":"SUMIF('فواتير المشتريات'!$D:$D,A14,'فواتير المشتريات'!$E:$E)","v":0},{"$f":"SUMIF('فواتير المبيعات'!$D:$D,A14,'فواتير المبيعات'!$E:$E)","v":0},0,{"$f":"IF(H14=0,0,(E14+SUMIF('فواتير المشتريات'!$D:$D,A14,'فواتير المشتريات'!$L:$L))/(C14+F14))","v":0},0]
[null,null,null,null,0,{"$f":"SUMIF('فواتير المشتريات'!$D:$D,A15,'فواتير المشتريات'!$E:$E)","v":0},{"$f":"SUMIF('فواتير المبيعات'!$D:$D,A15,'فواتير المبيعات'!$E:$E)","v":0},0,{"$f":"IF(H15=0,0,(E15+SUMIF('فواتير المشتريات'!$D:$D,A15,'فواتير المشتريات'!$L:$L))/(C15+F15))","v":0},0]
[null,null,null,null,0,{"$f":"SUMIF('فواتير المشتريات'!$D:$D,A16,'فواتير المشتريات'!$E:$E)","v":0},{"$f":"SUMIF('فواتير المبيعات'!$D:$D,A16,'فواتير المبيعات'!$E:$E)","v":0},0,{"$f":"IF(H16=0,0,(E16+SUMIF('فواتير المشتريات'!$D:$D,A16,'فواتير المشتريات'!$L:$L))/(C16+F16))","v":0},0]
[null,null,null,null,0,{"$f":"SUMIF('فواتير المشتريات'!$D:$D,A17,'فواتير المشتريات'!$E:$E)","v":0},{"$f":"SUMIF('فواتير المبيعات'!$D:$D,A17,'فواتير المبيعات'!$E:$E)","v":0},0,{"$f":"IF(H17=0,0,(E17+SUMIF('فواتير المشتريات'!$D:$D,A17,'فواتير المشتريات'!$L:$L))/(C17+F17))","v":0},0]
[null,null,null,null,0,{"$f":"SUMIF('فواتير المشتريات'!$D:$D,A18,'فواتير المشتريات'!$E:$E)","v":0},{"$f":"SUMIF('فواتير المبيعات'!$D:$D,A18,'فواتير المبيعات'!$E:$E)","v":0},0,{"$f":"IF(H18=0,0,(E18+SUMIF('فواتير المشتريات'!$D:$D,A18,'فواتير المشتريات'!$L:$L))/(C18+F18))","v":0},0]
[null,null,null,null,0,{"$f":"SUMIF('فواتير المشتريات'!$D:$D,A19,'فواتير المشتريات'!$E:$E)","v":0},{"$f":"SUMIF('فواتير المبيعات'!$D:$D,A19,'فواتير المبيعات'!$E:$E)","v":0},0,{"$f":"IF(H19=0,0,(E19+SUMIF('فواتير المشتريات'!$D:$D,A19,'فواتير المشتريات'!$L:$L))/(C19+F19))","v":0},0]
[null,null,null,null,0,{"$f":"SUMIF('فواتير المشتريات'!$D:$D,A20,'فواتير المشتريات'!$E:$E)","v":0},{"$f":"SUMIF('فواتير المبيعات'!$D:$D,A20,'فواتير المبيعات'!$E:$E)","v":0},0,{"$f":"IF(H20=0,0,(E20+SUMIF('فواتير المشتريات'!$D:$D,A20,'فواتير المشتريات'!$L:$L))/(C20+F20))","v":0},0]
[null,null,null,null,0,{"$f":"SUMIF('فواتير المشتريات'!$D:$D,A21,'فواتير المشتريات'!$E:$E)","v":0},{"$f":"SUMIF('فواتير المبيعات'!$D:$D,A21,'فواتير المبيعات'!$E:$E)","v":0},0,{"$f":"IF(H21=0,0,(E21+SUMIF('فواتير المشتريات'!$D:$D,A21,'فواتير المشتريات'!$L:$L))/(C21+F21))","v":0},0]
[null,null,null,null,0,{"$f":"SUMIF('فواتير المشتريات'!$D:$D,A22,'فواتير المشتريات'!$E:$E)","v":0},{"$f":"SUMIF('فواتير المبيعات'!$D:$D,A22,'فواتير المبيعات'!$E:$E)","v":0},0,{"$f":"IF(H22=0,0,(E22+SUMIF('فواتير المشتريات'!$D:$D,A22,'فواتير المشتريات'!$L:$L))/(C22+F22))","v":0},0]
[null,null,null,null,0,{"$f":"SUMIF('فواتير المشتريات'!$D:$D,A23,'فواتير المشتريات'!$E:$E)","v":0},{"$f":"SUMIF('فواتير المبيعات'!$D:$D,A23,'فواتير المبيعات'!$E:$E)","v":0},0,{"$f":"IF(H23=0,0,(E23+SUMIF('فواتير المشتريات'!$D:$D,A23,'فواتير المشتريات'!$L:$L))/(C23+F23))","v":0},0]
[null,null,null,null,0,{"$f":"SUMIF('فواتير المشتريات'!$D:$D,A24,'فواتير المشتريات'!$E:$E)","v":0},{"$f":"SUMIF('فواتير المبيعات'!$D:$D,A24,'فواتير المبيعات'!$E:$E)","v":0},0,{"$f":"IF(H24=0,0,(E24+SUMIF('فواتير المشتريات'!$D:$D,A24,'فواتير المشتريات'!$L:$L))/(C24+F24))","v":0},0]
[null,null,null,null,0,{"$f":"SUMIF('فواتير المشتريات'!$D:$D,A25,'فواتير المشتريات'!$E:$E)","v":0},{"$f":"SUMIF('فواتير المبيعات'!$D:$D,A25,'فواتير المبيعات'!$E:$E)","v":0},0,{"$f":"IF(H25=0,0,(E25+SUMIF('فواتير المشتريات'!$D:$D,A25,'فواتير المشتريات'!$L:$L))/(C25+F25))","v":0},0]
[null,null,null,null,0,{"$f":"SUMIF('فواتير المشتريات'!$D:$D,A26,'فواتير المشتريات'!$E:$E)","v":0},{"$f":"SUMIF('فواتير المبيعات'!$D:$D,A26,'فواتير المبيعات'!$E:$E)","v":0},0,{"$f":"IF(H26=0,0,(E26+SUMIF('فواتير المشتريات'!$D:$D,A26,'فواتير المشتريات'!$L:$L))/(C26+F26))","v":0},0]
[null,null,null,null,0,{"$f":"SUMIF('فواتير المشتريات'!$D:$D,A27,'فواتير المشتريات'!$E:$E)","v":0},{"$f":"SUMIF('فواتير المبيعات'!$D:$D,A27,'فواتير المبيعات'!$E:$E)","v":0},0,{"$f":"IF(H27=0,0,(E27+SUMIF('فواتير المشتريات'!$D:$D,A27,'فواتير المشتريات'!$L:$L))/(C27+F27))","v":0},0]
[null,null,null,null,0,{"$f":"SUMIF('فواتير المشتريات'!$D:$D,A28,'فواتير المشتريات'!$E:$E)","v":0},{"$f":"SUMIF('فواتير المبيعات'!$D:$D,A28,'فواتير المبيعات'!$E:$E)","v":0},0,{"$f":"IF(H28=0,0,(E28+SUMIF('فواتير المشتريات'!$D:$D,A28,'فواتير المشتريات'!$L:$L))/(C28+F28))","v":0},0]
[null,null,null,null,0,{"$f":"SUMIF('فواتير المشتريات'!$D:$D,A29,'فواتير المشتريات'!$E:$E)","v":0},{"$f":"SUMIF('فواتير المبيعات'!$D:$D,A29,'فواتير المبيعات'!$E:$E)","v":0},0,{"$f":"IF(H29=0,0,(E29+SUMIF('فواتير المشتريات'!$D:$D,A29,'فواتير المشتريات'!$L:$L))/(C29+F29))","v":0},0]
[null,null,null,null,0,{"$f":"SUMIF('فواتير المشتريات'!$D:$D,A30,'فواتير المشتريات'!$E:$E)","v":0},{"$f":"SUMIF('فواتير المبيعات'!$D:$D,A30,'فواتير المبيعات'!$E:$E)","v":0},0,{"$f":"IF(H30=0,0,(E30+SUMIF('فواتير المشتريات'!$D:$D,A30,'فواتير المشتريات'!$L:$L))/(C30+F30))","v":0},0]
[null,null,null,null,0,{"$f":"SUMIF('فواتير المشتريات'!$D:$D,A31,'فواتير المشتريات'!$E:$E)","v":0},{"$f":"SUMIF('فواتير المبيعات'!$D:$D,A31,'فواتير المبيعات'!$E:$E)","v":0},0,{"$f":"IF(H31=0,0,(E31+SUMIF('فواتير المشتريات'!$D:$D,A31,'فواتير المشتريات'!$L:$L))/(C31+F31))","v":0},0]
[null,null,null,null,0,{"$f":"SUMIF('فواتير المشتريات'!$D:$D,A32,'فواتير المشتريات'!$E:$E)","v":0},{"$f":"SUMIF('فواتير المبيعات'!$D:$D,A32,'فواتير المبيعات'!$E:$E)","v":0},0,{"$f":"IF(H32=0,0,(E32+SUMIF('فواتير المشتريات'!$D:$D,A32,'فواتير المشتريات'!$L:$L))/(C32+F32))","v":0},0]
[null,null,null,null,0,{"$f":"SUMIF('فواتير المشتريات'!$D:$D,A33,'فواتير المشتريات'!$E:$E)","v":0},{"$f":"SUMIF('فواتير المبيعات'!$D:$D,A33,'فواتير المبيعات'!$E:$E)","v":0},0,{"$f":"IF(H33=0,0,(E33+SUMIF('فواتير المشتريات'!$D:$D,A33,'فواتير المشتريات'!$L:$L))/(C33+F33))","v":0},0]
[null,null,null,null,0,{"$f":"SUMIF('فواتير المشتريات'!$D:$D,A34,'فواتير المشتريات'!$E:$E)","v":0},{"$f":"SUMIF('فواتير المبيعات'!$D:$D,A34,'فواتير المبيعات'!$E:$E)","v":0},0,{"$f":"IF(H34=0,0,(E34+SUMIF('فواتير المشتريات'!$D:$D,A34,'فواتير المشتريات'!$L:$L))/(C34+F34))","v":0},0]
[null,null,null,null,0,{"$f":"SUMIF('فواتير المشتريات'!$D:$D,A35,'فواتير المشتريات'!$E:$E)","v":0},{"$f":"SUMIF('فواتير المبيعات'!$D:$D,A35,'فواتير المبيعات'!$E:$E)","v":0},0,{"$f":"IF(H35=0,0,(E35+SUMIF('فواتير المشتريات'!$D:$D,A35,'فواتير المشتريات'!$L:$L))/(C35+F35))","v":0},0]
[null,null,null,null,0,{"$f":"SUMIF('فواتير المشتريات'!$D:$D,A36,'فواتير المشتريات'!$E:$E)","v":0},{"$f":"SUMIF('فواتير المبيعات'!$D:$D,A36,'فواتير المبيعات'!$E:$E)","v":0},0,{"$f":"IF(H36=0,0,(E36+SUMIF('فواتير المشتريات'!$D:$D,A36,'فواتير المشتريات'!$L:$L))/(C36+F36))","v":0},0]
[null,null,null,null,0,{"$f":"SUMIF('فواتير المشتريات'!$D:$D,A37,'فواتير المشتريات'!$E:$E)","v":0},{"$f":"SUMIF('فواتير المبيعات'!$D:$D,A37,'فواتير المبيعات'!$E:$E)","v":0},0,{"$f":"IF(H37=0,0,(E37+SUMIF('فواتير المشتريات'!$D:$D,A37,'فواتير المشتريات'!$L:$L))/(C37+F37))","v":0},0]
[null,null,null,null,0,{"$f":"SUMIF('فواتير المشتريات'!$D:$D,A38,'فواتير المشتريات'!$E:$E)","v":0},{"$f":"SUMIF('فواتير المبيعات'!$D:$D,A38,'فواتير المبيعات'!$E:$E)","v":0},0,{"$f":"IF(H38=0,0,(E38+SUMIF('فواتير المشتريات'!$D:$D,A38,'فواتير المشتريات'!$L:$L))/(C38+F38))","v":0},0]
[null,null,null,null,0,{"$f":"SUMIF('فواتير المشتريات'!$D:$D,A39,'فواتير المشتريات'!$E:$E)","v":0},{"$f":"SUMIF('فواتير المبيعات'!$D:$D,A39,'فواتير المبيعات'!$E:$E)","v":0},0,{"$f":"IF(H39=0,0,(E39+SUMIF('فواتير المشتريات'!$D:$D,A39,'فواتير المشتريات'!$L:$L))/(C39+F39))","v":0},0]
[null,null,null,null,0,{"$f":"SUMIF('فواتير المشتريات'!$D:$D,A40,'فواتير المشتريات'!$E:$E)","v":0},{"$f":"SUMIF('فواتير المبيعات'!$D:$D,A40,'فواتير المبيعات'!$E:$E)","v":0},0,{"$f":"IF(H40=0,0,(E40+SUMIF('فواتير المشتريات'!$D:$D,A40,'فواتير المشتريات'!$L:$L))/(C40+F40))","v":0},0]
[null,null,null,null,0,{"$f":"SUMIF('فواتير المشتريات'!$D:$D,A41,'فواتير المشتريات'!$E:$E)","v":0},{"$f":"SUMIF('فواتير المبيعات'!$D:$D,A41,'فواتير المبيعات'!$E:$E)","v":0},0,{"$f":"IF(H41=0,0,(E41+SUMIF('فواتير المشتريات'!$D:$D,A41,'فواتير المشتريات'!$L:$L))/(C41+F41))","v":0},0]
[null,null,null,null,0,{"$f":"SUMIF('فواتير المشتريات'!$D:$D,A42,'فواتير المشتريات'!$E:$E)","v":0},{"$f":"SUMIF('فواتير المبيعات'!$D:$D,A42,'فواتير المبيعات'!$E:$E)","v":0},0,{"$f":"IF(H42=0,0,(E42+SUMIF('فواتير المشتريات'!$D:$D,A42,'فواتير المشتريات'!$L:$L))/(C42+F42))","v":0},0]
[null,null,null,null,0,{"$f":"SUMIF('فواتير المشتريات'!$D:$D,A43,'فواتير المشتريات'!$E:$E)","v":0},{"$f":"SUMIF('فواتير المبيعات'!$D:$D,A43,'فواتير المبيعات'!$E:$E)","v":0},0,{"$f":"IF(H43=0,0,(E43+SUMIF('فواتير المشتريات'!$D:$D,A43,'فواتير المشتريات'!$L:$L))/(C43+F43))","v":0},0]
[null,null,null,null,0,{"$f":"SUMIF('فواتير المشتريات'!$D:$D,A44,'فواتير المشتريات'!$E:$E)","v":0},{"$f":"SUMIF('فواتير المبيعات'!$D:$D,A44,'فواتير المبيعات'!$E:$E)","v":0},0,{"$f":"IF(H44=0,0,(E44+SUMIF('فواتير المشتريات'!$D:$D,A44,'فواتير المشتريات'!$L:$L))/(C44+F44))","v":0},0]
[null,null,null,null,0,{"$f":"SUMIF('فواتير المشتريات'!$D:$D,A45,'فواتير المشتريات'!$E:$E)","v":0},{"$f":"SUMIF('فواتير المبيعات'!$D:$D,A45,'فواتير المبيعات'!$E:$E)","v":0},0,{"$f":"IF(H45=0,0,(E45+SUMIF('فواتير المشتريات'!$D:$D,A45,'فواتير المشتريات'!$L:$L))/(C45+F45))","v":0},0]
[null,null,null,null,0,{"$f":"SUMIF('فواتير المشتريات'!$D:$D,A46,'فواتير المشتريات'!$E:$E)","v":0},{"$f":"SUMIF('فواتير المبيعات'!$D:$D,A46,'فواتير المبيعات'!$E:$E)","v":0},0,{"$f":"IF(H46=0,0,(E46+SUMIF('فواتير المشتريات'!$D:$D,A46,'فواتير المشتريات'!$L:$L))/(C46+F46))","v":0},0]
[null,null,null,null,0,{"$f":"SUMIF('فواتير المشتريات'!$D:$D,A47,'فواتير المشتريات'!$E:$E)","v":0},{"$f":"SUMIF('فواتير المبيعات'!$D:$D,A47,'فواتير المبيعات'!$E:$E)","v":0},0,{"$f":"IF(H47=0,0,(E47+SUMIF('فواتير المشتريات'!$D:$D,A47,'فواتير المشتريات'!$L:$L))/(C47+F47))","v":0},0]
[null,null,null,null,0,{"$f":"SUMIF('فواتير المشتريات'!$D:$D,A48,'فواتير المشتريات'!$E:$E)","v":0},{"$f":"SUMIF('فواتير المبيعات'!$D:$D,A48,'فواتير المبيعات'!$E:$E)","v":0},0,{"$f":"IF(H48=0,0,(E48+SUMIF('فواتير المشتريات'!$D:$D,A48,'فواتير المشتريات'!$L:$L))/(C48+F48))","v":0},0]
[null,null,null,null,0,{"$f":"SUMIF('فواتير المشتريات'!$D:$D,A49,'فواتير المشتريات'!$E:$E)","v":0},{"$f":"SUMIF('فواتير المبيعات'!$D:$D,A49,'فواتير المبيعات'!$E:$E)","v":0},0,{"$f":"IF(H49=0,0,(E49+SUMIF('فواتير المشتريات'!$D:$D,A49,'فواتير المشتريات'!$L:$L))/(C49+F49))","v":0},0]
[null,null,{"$f":"SUM(C4:C49)","v":0},null,{"$f":"SUM(E4:E49)","v":0},5,2,3,null,{"$f":"SUM(J4:J49)","v":61.56}]

{"sheet":"قائمه المصروفات","index":4,"n_rows":50,"n_cols":4,"rows_kept":50,"cut":false,"hidden":false,"merged":[[0,0,0,3]]}
["قائمه المصـــروفات"]
["اســـم المصروف","الرصيد الافتتاحي","الحركه","الرصيد الحالي"]
["مصروف 1",null,{"$f":"SUMIF('حركه المصروفات'!C:C,A3,'حركه المصروفات'!D:D)","v":0},{"$f":"B3+C3","v":0}]
["مصروف 2",null,{"$f":"SUMIF('حركه المصروفات'!C:C,A4,'حركه المصروفات'!D:D)","v":0},0]
["مصروف 3",null,{"$f":"SUMIF('حركه المصروفات'!C:C,A5,'حركه المصروفات'!D:D)","v":0},0]
["مصروف 4",null,{"$f":"SUMIF('حركه المصروفات'!C:C,A6,'حركه المصروفات'!D:D)","v":0},0]
["مصروف 5",null,{"$f":"SUMIF('حركه المصروفات'!C:C,A7,'حركه المصروفات'!D:D)","v":500},500]
[null,null,{"$f":"SUMIF('حركه المصروفات'!C:C,A8,'حركه المصروفات'!D:D)","v":0},0]
[null,null,{"$f":"SUMIF('حركه المصروفات'!C:C,A9,'حركه المصروفات'!D:D)","v":0},0]
[null,null,{"$f":"SUMIF('حركه المصروفات'!C:C,A10,'حركه المصروفات'!D:D)","v":0},0]
[null,null,{"$f":"SUMIF('حركه المصروفات'!C:C,A11,'حركه المصروفات'!D:D)","v":0},0]
[null,null,{"$f":"SUMIF('حركه المصروفات'!C:C,A12,'حركه المصروفات'!D:D)","v":0},0]
[null,null,{"$f":"SUMIF('حركه المصروفات'!C:C,A13,'حركه المصروفات'!D:D)","v":0},0]
[null,null,{"$f":"SUMIF('حركه المصروفات'!C:C,A14,'حركه المصروفات'!D:D)","v":0},0]
[null,null,{"$f":"SUMIF('حركه المصروفات'!C:C,A15,'حركه المصروفات'!D:D)","v":0},0]
[null,null,{"$f":"SUMIF('حركه المصروفات'!C:C,A16,'حركه المصروفات'!D:D)","v":0},0]
[null,null,{"$f":"SUMIF('حركه المصروفات'!C:C,A17,'حركه المصروفات'!D:D)","v":0},0]
[null,null,{"$f":"SUMIF('حركه المصروفات'!C:C,A18,'حركه المصروفات'!D:D)","v":0},0]
[null,null,{"$f":"SUMIF('حركه المصروفات'!C:C,A19,'حركه المصروفات'!D:D)","v":0},0]
[null,null,{"$f":"SUMIF('حركه المصروفات'!C:C,A20,'حركه المصروفات'!D:D)","v":0},0]
[null,null,{"$f":"SUMIF('حركه المصروفات'!C:C,A21,'حركه المصروفات'!D:D)","v":0},0]
[null,null,{"$f":"SUMIF('حركه المصروفات'!C:C,A22,'حركه المصروفات'!D:D)","v":0},0]
[null,null,{"$f":"SUMIF('حركه المصروفات'!C:C,A23,'حركه المصروفات'!D:D)","v":0},0]
[null,null,{"$f":"SUMIF('حركه المصروفات'!C:C,A24,'حركه المصروفات'!D:D)","v":0},0]
[null,null,{"$f":"SUMIF('حركه المصروفات'!C:C,A25,'حركه المصروفات'!D:D)","v":0},0]
[null,null,{"$f":"SUMIF('حركه المصروفات'!C:C,A26,'حركه المصروفات'!D:D)","v":0},0]
[null,null,{"$f":"SUMIF('حركه المصروفات'!C:C,A27,'حركه المصروفات'!D:D)","v":0},0]
[null,null,{"$f":"SUMIF('حركه المصروفات'!C:C,A28,'حركه المصروفات'!D:D)","v":0},0]
[null,null,{"$f":"SUMIF('حركه المصروفات'!C:C,A29,'حركه المصروفات'!D:D)","v":0},0]
[null,null,{"$f":"SUMIF('حركه المصروفات'!C:C,A30,'حركه المصروفات'!D:D)","v":0},0]
[null,null,{"$f":"SUMIF('حركه المصروفات'!C:C,A31,'حركه المصروفات'!D:D)","v":0},0]
[null,null,{"$f":"SUMIF('حركه المصروفات'!C:C,A32,'حركه المصروفات'!D:D)","v":0},0]
[null,null,{"$f":"SUMIF('حركه المصروفات'!C:C,A33,'حركه المصروفات'!D:D)","v":0},0]
[null,null,{"$f":"SUMIF('حركه المصروفات'!C:C,A34,'حركه المصروفات'!D:D)","v":0},0]
[null,null,{"$f":"SUMIF('حركه المصروفات'!C:C,A35,'حركه المصروفات'!D:D)","v":0},0]
[null,null,{"$f":"SUMIF('حركه المصروفات'!C:C,A36,'حركه المصروفات'!D:D)","v":0},0]
[null,null,{"$f":"SUMIF('حركه المصروفات'!C:C,A37,'حركه المصروفات'!D:D)","v":0},0]
[null,null,{"$f":"SUMIF('حركه المصروفات'!C:C,A38,'حركه المصروفات'!D:D)","v":0},0]
[null,null,{"$f":"SUMIF('حركه المصروفات'!C:C,A39,'حركه المصروفات'!D:D)","v":0},0]
[null,null,{"$f":"SUMIF('حركه المصروفات'!C:C,A40,'حركه المصروفات'!D:D)","v":0},0]
[null,null,{"$f":"SUMIF('حركه المصروفات'!C:C,A41,'حركه المصروفات'!D:D)","v":0},0]
[null,null,{"$f":"SUMIF('حركه المصروفات'!C:C,A42,'حركه المصروفات'!D:D)","v":0},0]
[null,null,{"$f":"SUMIF('حركه المصروفات'!C:C,A43,'حركه المصروفات'!D:D)","v":0},0]
[null,null,{"$f":"SUMIF('حركه المصروفات'!C:C,A44,'حركه المصروفات'!D:D)","v":0},0]
[null,null,{"$f":"SUMIF('حركه المصروفات'!C:C,A45,'حركه المصروفات'!D:D)","v":0},0]
[null,null,{"$f":"SUMIF('حركه المصروفات'!C:C,A46,'حركه المصروفات'!D:D)","v":0},0]
[null,null,{"$f":"SUMIF('حركه المصروفات'!C:C,A47,'حركه المصروفات'!D:D)","v":0},0]
[null,null,{"$f":"SUMIF('حركه المصروفات'!C:C,A48,'حركه المصروفات'!D:D)","v":0},0]
[null,null,{"$f":"SUMIF('حركه المصروفات'!C:C,A49,'حركه المصروفات'!D:D)","v":0},0]
[null,{"$f":"SUM(B3:B49)","v":0},500,500]

{"sheet":"قائمه الخدمات","index":5,"n_rows":56,"n_cols":4,"rows_kept":56,"cut":false,"hidden":false,"merged":[[0,0,0,3]]}
["قائمه الخدمات"]
["اســـم الخدمه","الرصيد الافتتاحي","الحركه","الرصيد الحالي"]
["خدمه 1",null,{"$f":"SUMIF('يوميه الخدمات'!D:D,A3,'يوميه الخدمات'!J:J)","v":0},{"$f":"B3+C3","v":0}]
["خدمه 2",null,{"$f":"SUMIF('يوميه الخدمات'!D:D,A4,'يوميه الخدمات'!J:J)","v":855},855]
["خدمه 3",null,{"$f":"SUMIF('يوميه الخدمات'!D:D,A5,'يوميه الخدمات'!J:J)","v":969},969]
["خدمه 4",null,{"$f":"SUMIF('يوميه الخدمات'!D:D,A6,'يوميه الخدمات'!J:J)","v":0},0]
["خدمه 5",null,{"$f":"SUMIF('يوميه الخدمات'!D:D,A7,'يوميه الخدمات'!J:J)","v":0},0]
[null,null,{"$f":"SUMIF('يوميه الخدمات'!D:D,A8,'يوميه الخدمات'!J:J)","v":0},0]
[null,null,{"$f":"SUMIF('يوميه الخدمات'!D:D,A9,'يوميه الخدمات'!J:J)","v":0},0]
[null,null,{"$f":"SUMIF('يوميه الخدمات'!D:D,A10,'يوميه الخدمات'!J:J)","v":0},0]
[null,null,{"$f":"SUMIF('يوميه الخدمات'!D:D,A11,'يوميه الخدمات'!J:J)","v":0},0]
[null,null,{"$f":"SUMIF('يوميه الخدمات'!D:D,A12,'يوميه الخدمات'!J:J)","v":0},0]
[null,null,{"$f":"SUMIF('يوميه الخدمات'!D:D,A13,'يوميه الخدمات'!J:J)","v":0},0]
[null,null,{"$f":"SUMIF('يوميه الخدمات'!D:D,A14,'يوميه الخدمات'!J:J)","v":0},0]
[null,null,{"$f":"SUMIF('يوميه الخدمات'!D:D,A15,'يوميه الخدمات'!J:J)","v":0},0]
[null,null,{"$f":"SUMIF('يوميه الخدمات'!D:D,A16,'يوميه الخدمات'!J:J)","v":0},0]
[null,null,{"$f":"SUMIF('يوميه الخدمات'!D:D,A17,'يوميه الخدمات'!J:J)","v":0},0]
[null,null,{"$f":"SUMIF('يوميه الخدمات'!D:D,A18,'يوميه الخدمات'!J:J)","v":0},0]
[null,null,{"$f":"SUMIF('يوميه الخدمات'!D:D,A19,'يوميه الخدمات'!J:J)","v":0},0]
[null,null,{"$f":"SUMIF('يوميه الخدمات'!D:D,A20,'يوميه الخدمات'!J:J)","v":0},0]
[null,null,{"$f":"SUMIF('يوميه الخدمات'!D:D,A21,'يوميه الخدمات'!J:J)","v":0},0]
[null,null,{"$f":"SUMIF('يوميه الخدمات'!D:D,A22,'يوميه الخدمات'!J:J)","v":0},0]
[null,null,{"$f":"SUMIF('يوميه الخدمات'!D:D,A23,'يوميه الخدمات'!J:J)","v":0},0]
[null,null,{"$f":"SUMIF('يوميه الخدمات'!D:D,A24,'يوميه الخدمات'!J:J)","v":0},0]
[null,null,{"$f":"SUMIF('يوميه الخدمات'!D:D,A25,'يوميه الخدمات'!J:J)","v":0},0]
[null,null,{"$f":"SUMIF('يوميه الخدمات'!D:D,A26,'يوميه الخدمات'!J:J)","v":0},0]
[null,null,{"$f":"SUMIF('يوميه الخدمات'!D:D,A27,'يوميه الخدمات'!J:J)","v":0},0]
[null,null,{"$f":"SUMIF('يوميه الخدمات'!D:D,A28,'يوميه الخدمات'!J:J)","v":0},0]
[null,null,{"$f":"SUMIF('يوميه الخدمات'!D:D,A29,'يوميه الخدمات'!J:J)","v":0},0]
[null,null,{"$f":"SUMIF('يوميه الخدمات'!D:D,A30,'يوميه الخدمات'!J:J)","v":0},0]
[null,null,{"$f":"SUMIF('يوميه الخدمات'!D:D,A31,'يوميه الخدمات'!J:J)","v":0},0]
[null,null,{"$f":"SUMIF('يوميه الخدمات'!D:D,A32,'يوميه الخدمات'!J:J)","v":0},0]
[null,null,{"$f":"SUMIF('يوميه الخدمات'!D:D,A33,'يوميه الخدمات'!J:J)","v":0},0]
[null,null,{"$f":"SUMIF('يوميه الخدمات'!D:D,A34,'يوميه الخدمات'!J:J)","v":0},0]
[null,null,{"$f":"SUMIF('يوميه الخدمات'!D:D,A35,'يوميه الخدمات'!J:J)","v":0},0]
[null,null,{"$f":"SUMIF('يوميه الخدمات'!D:D,A36,'يوميه الخدمات'!J:J)","v":0},0]
[null,null,{"$f":"SUMIF('يوميه الخدمات'!D:D,A37,'يوميه الخدمات'!J:J)","v":0},0]
[null,null,{"$f":"SUMIF('يوميه الخدمات'!D:D,A38,'يوميه الخدمات'!J:J)","v":0},0]
[null,null,{"$f":"SUMIF('يوميه الخدمات'!D:D,A39,'يوميه الخدمات'!J:J)","v":0},0]
[null,null,{"$f":"SUMIF('يوميه الخدمات'!D:D,A40,'يوميه الخدمات'!J:J)","v":0},0]
[null,null,{"$f":"SUMIF('يوميه الخدمات'!D:D,A41,'يوميه الخدمات'!J:J)","v":0},0]
[null,null,{"$f":"SUMIF('يوميه الخدمات'!D:D,A42,'يوميه الخدمات'!J:J)","v":0},0]
[null,null,{"$f":"SUMIF('يوميه الخدمات'!D:D,A43,'يوميه الخدمات'!J:J)","v":0},0]
[null,null,{"$f":"SUMIF('يوميه الخدمات'!D:D,A44,'يوميه الخدمات'!J:J)","v":0},0]
[null,null,{"$f":"SUMIF('يوميه الخدمات'!D:D,A45,'يوميه الخدمات'!J:J)","v":0},0]
[null,null,{"$f":"SUMIF('يوميه الخدمات'!D:D,A46,'يوميه الخدمات'!J:J)","v":0},0]
[null,null,{"$f":"SUMIF('يوميه الخدمات'!D:D,A47,'يوميه الخدمات'!J:J)","v":0},0]
[null,null,{"$f":"SUMIF('يوميه الخدمات'!D:D,A48,'يوميه الخدمات'!J:J)","v":0},0]
[null,null,{"$f":"SUMIF('يوميه الخدمات'!D:D,A49,'يوميه الخدمات'!J:J)","v":0},0]
[null,null,{"$f":"SUMIF('يوميه الخدمات'!D:D,A50,'يوميه الخدمات'!J:J)","v":0},0]
[null,null,{"$f":"SUMIF('يوميه الخدمات'!D:D,A51,'يوميه الخدمات'!J:J)","v":0},0]
[null,null,{"$f":"SUMIF('يوميه الخدمات'!D:D,A52,'يوميه الخدمات'!J:J)","v":0},0]
[null,null,{"$f":"SUMIF('يوميه الخدمات'!D:D,A53,'يوميه الخدمات'!J:J)","v":0},0]
[null,null,{"$f":"SUMIF('يوميه الخدمات'!D:D,A54,'يوميه الخدمات'!J:J)","v":0},0]
[null,null,{"$f":"SUMIF('يوميه الخدمات'!D:D,A55,'يوميه الخدمات'!J:J)","v":0},0]
[null,{"$f":"SUM(B3:B55)","v":0},1824,1824]

{"sheet":"فواتير المشتريات","index":6,"n_rows":56,"n_cols":13,"rows_kept":56,"cut":false,"hidden":false,"merged":[[0,0,0,12]]}
["فواتير المشتريات"]
["التاريخ","رقم المستند","اسم المورد","اسم الصنف","الكميه","سعر الوحده","الاجمالي","قيمه الخصم","الاجمالي بعد الخصم","نسبه الضريبه","قيمه الضريبه","الصافي","ملاحظات"]
["2021-01-01",1,"مورد 2","صنف 3",5,20,{"$f":"E3*F3","v":100},10,{"$f":"G3-H3","v":90},0.14000000000000001,{"$f":"I3*J3","v":12.600000000000001},{"$f":"I3+K3","v":102.6}]
[null,null,null,null,null,null,0,null,0,null,0,0]
[null,null,null,null,null,null,0,null,0,null,0,0]
[null,null,null,null,null,null,0,null,0,null,0,0]
[null,null,null,null,null,null,0,null,0,null,0,0]
[null,null,null,null,null,null,0,null,0,null,0,0]
[null,null,null,null,null,null,0,null,0,null,0,0]
[null,null,null,null,null,null,0,null,0,null,0,0]
[null,null,null,null,null,null,0,null,0,null,0,0]
[null,null,null,null,null,null,0,null,0,null,0,0]
[null,null,null,null,null,null,0,null,0,null,0,0]
[null,null,null,null,null,null,0,null,0,null,0,0]
[null,null,null,null,null,null,0,null,0,null,0,0]
[null,null,null,null,null,null,0,null,0,null,0,0]
[null,null,null,null,null,null,0,null,0,null,0,0]
[null,null,null,null,null,null,0,null,0,null,0,0]
[null,null,null,null,null,null,0,null,0,null,0,0]
[null,null,null,null,null,null,0,null,0,null,0,0]
[null,null,null,null,null,null,0,null,0,null,0,0]
[null,null,null,null,null,null,0,null,0,null,0,0]
[null,null,null,null,null,null,0,null,0,null,0,0]
[null,null,null,null,null,null,0,null,0,null,0,0]
[null,null,null,null,null,null,0,null,0,null,0,0]
[null,null,null,null,null,null,0,null,0,null,0,0]
[null,null,null,null,null,null,0,null,0,null,0,0]
[null,null,null,null,null,null,0,null,0,null,0,0]
[null,null,null,null,null,null,0,null,0,null,0,0]
[null,null,null,null,null,null,0,null,0,null,0,0]
[null,null,null,null,null,null,0,null,0,null,0,0]
[null,null,null,null,null,null,0,null,0,null,0,0]
[null,null,null,null,null,null,0,null,0,null,0,0]
[null,null,null,null,null,null,0,null,0,null,0,0]
[null,null,null,null,null,null,0,null,0,null,0,0]
[null,null,null,null,null,null,0,null,0,null,0,0]
[null,null,null,null,null,null,0,null,0,null,0,0]
[null,null,null,null,null,null,0,null,0,null,0,0]
[null,null,null,null,null,null,0,null,0,null,0,0]
[null,null,null,null,null,null,0,null,0,null,0,0]
[null,null,null,null,null,null,0,null,0,null,0,0]
[null,null,null,null,null,null,0,null,0,null,0,0]
[null,null,null,null,null,null,0,null,0,null,0,0]
[null,null,null,null,null,null,0,null,0,null,0,0]
[null,null,null,null,null,null,0,null,0,null,0,0]
[null,null,null,null,null,null,0,null,0,null,0,0]
[null,null,null,null,null,null,0,null,0,null,0,0]
[null,null,null,null,null,null,0,null,0,null,0,0]
[null,null,null,null,null,null,0,null,0,null,0,0]
[null,null,null,null,null,null,0,null,0,null,0,0]
[null,null,null,null,null,null,0,null,0,null,0,0]
[null,null,null,null,null,null,0,null,0,null,0,0]
[null,null,null,null,null,null,0,null,0,null,0,0]
[null,null,null,null,null,null,0,null,0,null,0,0]
[null,null,null,null,null,null,0,null,0,null,0,0]
[null,null,null,null,{"$f":"SUM(E3:E55)","v":5},null,{"$f":"SUM(G3:G55)","v":100},10,90,null,{"$f":"SUM(K3:K55)","v":12.600000000000001},102.6]

{"sheet":"فواتير المبيعات","index":7,"n_rows":68,"n_cols":13,"rows_kept":68,"cut":false,"hidden":false,"merged":[[0,0,0,12]]}
["فواتير المبيعات"]
["التاريخ","رقم المستند","اسم العميل","اسم الصنف","الكميه","سعر الوحده","الاجمالي","قيمه الخصم","الاجمالي بعد الخصم","نسبه الضريبه","قيمه الضريبه","الصافي","ملاحظات"]
["2021-01-02",1,"عميل 1","صنف 3",2,105,{"$f":"E3*F3","v":210},10,{"$f":"G3-H3","v":200},0.14000000000000001,{"$f":"I3*J3","v":28.000000000000004},{"$f":"I3+K3","v":228}]
[null,null,null,null,null,null,0,null,0,null,0,0]
[null,null,null,null,null,null,0,null,0,null,0,0]
[null,null,null,null,null,null,0,null,0,null,0,0]
[null,null,null,null,null,null,0,null,0,null,0,0]
[null,null,null,null,null,null,0,null,0,null,0,0]
[null,null,null,null,null,null,0,null,0,null,0,0]
[null,null,null,null,null,null,0,null,0,null,0,0]
[null,null,null,null,null,null,0,null,0,null,0,0]
[null,null,null,null,null,null,0,null,0,null,0,0]
[null,null,null,null,null,null,0,null,0,null,0,0]
[null,null,null,null,null,null,0,null,0,null,0,0]
[null,null,null,null,null,null,0,null,0,null,0,0]
[null,null,null,null,null,null,0,null,0,null,0,0]
[null,null,null,null,null,null,0,null,0,null,0,0]
[null,null,null,null,null,null,0,null,0,null,0,0]
[null,null,null,null,null,null,0,null,0,null,0,0]
[null,null,null,null,null,null,0,null,0,null,0,0]
[null,null,null,null,null,null,0,null,0,null,0,0]
[null,null,null,null,null,null,0,null,0,null,0,0]
[null,null,null,null,null,null,0,null,0,null,0,0]
[null,null,null,null,null,null,0,null,0,null,0,0]
[null,null,null,null,null,null,0,null,0,null,0,0]
[null,null,null,null,null,null,0,null,0,null,0,0]
[null,null,null,null,null,null,0,null,0,null,0,0]
[null,null,null,null,null,null,0,null,0,null,0,0]
[null,null,null,null,null,null,0,null,0,null,0,0]
[null,null,null,null,null,null,0,null,0,null,0,0]
[null,null,null,null,null,null,0,null,0,null,0,0]
[null,null,null,null,null,null,0,null,0,null,0,0]
[null,null,null,null,null,null,0,null,0,null,0,0]
[null,null,null,null,null,null,0,null,0,null,0,0]
[null,null,null,null,null,null,0,null,0,null,0,0]
[null,null,null,null,null,null,0,null,0,null,0,0]
[null,null,null,null,null,null,0,null,0,null,0,0]
[null,null,null,null,null,null,0,null,0,null,0,0]
[null,null,null,null,null,null,0,null,0,null,0,0]
[null,null,null,null,null,null,0,null,0,null,0,0]
[null,null,null,null,null,null,0,null,0,null,0,0]
[null,null,null,null,null,null,0,null,0,null,0,0]
[null,null,null,null,null,null,0,null,0,null,0,0]
[null,null,null,null,null,null,0,null,0,null,0,0]
[null,null,null,null,null,null,0,null,0,null,0,0]
[null,null,null,null,null,null,0,null,0,null,0,0]
[null,null,null,null,null,null,0,null,0,null,0,0]
[null,null,null,null,null,null,0,null,0,null,0,0]
[null,null,null,null,null,null,0,null,0,null,0,0]
[null,null,null,null,null,null,0,null,0,null,0,0]
[null,null,null,null,null,null,0,null,0,null,0,0]
[null,null,null,null,null,null,0,null,0,null,0,0]
[null,null,null,null,null,null,0,null,0,null,0,0]
[null,null,null,null,null,null,0,null,0,null,0,0]
[null,null,null,null,null,null,0,null,0,null,0,0]
[null,null,null,null,null,null,0,null,0,null,0,0]
[null,null,null,null,null,null,0,null,0,null,0,0]
[null,null,null,null,null,null,0,null,0,null,0,0]
[null,null,null,null,null,null,0,null,0,null,0,0]
[null,null,null,null,null,null,0,null,0,null,0,0]
[null,null,null,null,null,null,0,null,0,null,0,0]
[null,null,null,null,null,null,0,null,0,null,0,0]
[null,null,null,null,null,null,0,null,0,null,0,0]
[null,null,null,null,null,null,0,null,0,null,0,0]
[null,null,null,null,null,null,0,null,0,null,0,0]
[null,null,null,null,null,null,0,null,0,null,0,0]
[null,null,null,null,null,null,0,null,0,null,0,0]
[null,null,null,null,{"$f":"SUM(E3:E67)","v":2},null,{"$f":"SUM(G3:G67)","v":210},10,200,null,{"$f":"SUM(K3:K67)","v":28.000000000000004},228]

{"sheet":"يوميه الخدمات","index":8,"n_rows":104,"n_cols":11,"rows_kept":104,"cut":false,"hidden":false,"merged":[[0,0,0,10]]}
["يوميه الخدمات المقدمه للعـــملاء"]
["التاريخ","رقم المستند","اسم العميل","اسم الخدمه","قيمه الخدمه","قيمه الخصم","الاجمالي بعد الخصم","نسبه الضريبه","قيمه الضريبه","الصافي","ملاحظات"]
["2021-01-01",1,"عميل 1","خدمه 3",1000,150,{"$f":"E3-F3","v":850},0.14000000000000001,{"$f":"G3*H3","v":119.00000000000001},{"$f":"G3+I3","v":969}]
["2021-01-02",2,"عميل 1","خدمه 2",800,50,750,0.14000000000000001,105.00000000000001,855]
[null,null,null,null,null,null,0,null,0,0]
[null,null,null,null,null,null,0,null,0,0]
[null,null,null,null,null,null,0,null,0,0]
[null,null,null,null,null,null,0,null,0,0]
[null,null,null,null,null,null,0,null,0,0]
[null,null,null,null,null,null,0,null,0,0]
[null,null,null,null,null,null,0,null,0,0]
[null,null,null,null,null,null,0,null,0,0]
[null,null,null,null,null,null,0,null,0,0]
[null,null,null,null,null,null,0,null,0,0]
[null,null,null,null,null,null,0,null,0,0]
[null,null,null,null,null,null,0,null,0,0]
[null,null,null,null,null,null,0,null,0,0]
[null,null,null,null,null,null,0,null,0,0]
[null,null,null,null,null,null,0,null,0,0]
[null,null,null,null,null,null,0,null,0,0]
[null,null,null,null,null,null,0,null,0,0]
[null,null,null,null,null,null,0,null,0,0]
[null,null,null,null,null,null,0,null,0,0]
[null,null,null,null,null,null,0,null,0,0]
[null,null,null,null,null,null,0,null,0,0]
[null,null,null,null,null,null,0,null,0,0]
[null,null,null,null,null,null,0,null,0,0]
[null,null,null,null,null,null,0,null,0,0]
[null,null,null,null,null,null,0,null,0,0]
[null,null,null,null,null,null,0,null,0,0]
[null,null,null,null,null,null,0,null,0,0]
[null,null,null,null,null,null,0,null,0,0]
[null,null,null,null,null,null,0,null,0,0]
[null,null,null,null,null,null,0,null,0,0]
[null,null,null,null,null,null,0,null,0,0]
[null,null,null,null,null,null,0,null,0,0]
[null,null,null,null,null,null,0,null,0,0]
[null,null,null,null,null,null,0,null,0,0]
[null,null,null,null,null,null,0,null,0,0]
[null,null,null,null,null,null,0,null,0,0]
[null,null,null,null,null,null,0,null,0,0]
[null,null,null,null,null,null,0,null,0,0]
[null,null,null,null,null,null,0,null,0,0]
[null,null,null,null,null,null,0,null,0,0]
[null,null,null,null,null,null,0,null,0,0]
[null,null,null,null,null,null,0,null,0,0]
[null,null,null,null,null,null,0,null,0,0]
[null,null,null,null,null,null,0,null,0,0]
[null,null,null,null,null,null,0,null,0,0]
[null,null,null,null,null,null,0,null,0,0]
[null,null,null,null,null,null,0,null,0,0]
[null,null,null,null,null,null,0,null,0,0]
[null,null,null,null,null,null,0,null,0,0]
[null,null,null,null,null,null,0,null,0,0]
[null,null,null,null,null,null,0,null,0,0]
[null,null,null,null,null,null,0,null,0,0]
[null,null,null,null,null,null,0,null,0,0]
[null,null,null,null,null,null,0,null,0,0]
[null,null,null,null,null,null,0,null,0,0]
[null,null,null,null,null,null,0,null,0,0]
[null,null,null,null,null,null,0,null,0,0]
[null,null,null,null,null,null,0,null,0,0]
[null,null,null,null,null,null,0,null,0,0]
[null,null,null,null,null,null,0,null,0,0]
[null,null,null,null,null,null,0,null,0,0]
[null,null,null,null,null,null,0,null,0,0]
[null,null,null,null,null,null,0,null,0,0]
[null,null,null,null,null,null,0,null,0,0]
[null,null,null,null,null,null,0,null,0,0]
[null,null,null,null,null,null,0,null,0,0]
[null,null,null,null,null,null,0,null,0,0]
[null,null,null,null,null,null,0,null,0,0]
[null,null,null,null,null,null,0,null,0,0]
[null,null,null,null,null,null,0,null,0,0]
[null,null,null,null,null,null,0,null,0,0]
[null,null,null,null,null,null,0,null,0,0]
[null,null,null,null,null,null,0,null,0,0]
[null,null,null,null,null,null,0,null,0,0]
[null,null,null,null,null,null,0,null,0,0]
[null,null,null,null,null,null,0,null,0,0]
[null,null,null,null,null,null,0,null,0,0]
[null,null,null,null,null,null,0,null,0,0]
[null,null,null,null,null,null,0,null,0,0]
[null,null,null,null,null,null,0,null,0,0]
[null,null,null,null,null,null,0,null,0,0]
[null,null,null,null,null,null,0,null,0,0]
[null,null,null,null,null,null,0,null,0,0]
[null,null,null,null,null,null,0,null,0,0]
[null,null,null,null,null,null,0,null,0,0]
[null,null,null,null,null,null,0,null,0,0]
[null,null,null,null,null,null,0,null,0,0]
[null,null,null,null,null,null,0,null,0,0]
[null,null,null,null,null,null,0,null,0,0]
[null,null,null,null,null,null,0,null,0,0]
[null,null,null,null,null,null,0,null,0,0]
[null,null,null,null,null,null,0,null,0,0]
[null,null,null,null,null,null,0,null,0,0]
[null,null,null,null,null,null,0,null,0,0]
[null,null,null,null,null,null,0,null,0,0]
[null,null,null,null,null,null,0,null,0,0]
[null,null,null,null,null,null,0,null,0,0]
[null,null,null,null,null,null,0,null,0,0]
[null,null,null,null,null,null,0,null,0,0]
[null,null,null,null,{"$f":"SUM(E3:E103)","v":1800},200,1600,null,{"$f":"SUM(I3:I103)","v":224.00000000000003},1824]

{"sheet":"التحصيل من العميل","index":9,"n_rows":56,"n_cols":5,"rows_kept":56,"cut":false,"hidden":false,"merged":[[0,0,0,4]]}
["التحصيل من العــملاء"]
["التاريخ","رقم المستند","اسم العميل","قيمه التحصيل","ملاحظات"]
["2021-01-01",1,"عميل 1",2052]
[]
[]
[]
[]
[]
[]
[]
[]
[]
[]
[]
[]
[]
[]
[]
[]
[]
[]
[]
[]
[]
[]
[]
[]
[]
[]
[]
[]
[]
[]
[]
[]
[]
[]
[]
[]
[]
[]
[]
[]
[]
[]
[]
[]
[]
[]
[]
[]
[]
[]
[]
[]
[null,null,null,{"$f":"SUM(D3:D55)","v":2052}]

{"sheet":"السداد للمورد","index":10,"n_rows":68,"n_cols":5,"rows_kept":68,"cut":false,"hidden":false,"merged":[[0,0,0,4]]}
["السـداد للمورديين"]
["التاريخ","رقم المستند","اسم المورد","قيمه السداد","ملاحظات"]
["2021-01-02",1,"مورد 2",102.6]
[]
[]
[]
[]
[]
[]
[]
[]
[]
[]
[]
[]
[]
[]
[]
[]
[]
[]
[]
[]
[]
[]
[]
[]
[]
[]
[]
[]
[]
[]
[]
[]
[]
[]
[]
[]
[]
[]
[]
[]
[]
[]
[]
[]
[]
[]
[]
[]
[]
[]
[]
[]
[]
[]
[]
[]
[]
[]
[]
[]
[]
[]
[]
[]
[null,null,null,{"$f":"SUM(D3:D67)","v":102.6}]

{"sheet":"حركه المصروفات","index":11,"n_rows":56,"n_cols":5,"rows_kept":56,"cut":false,"hidden":false,"merged":[[0,0,0,4]]}
["حـــركه المصـــروفات"]
["التاريخ","رقم المستند","اسم المصروف","قيمه المصروف","ملاحظات"]
["2021-01-05",2,"مصروف 5",500]
[]
[]
[]
[]
[]
[]
[]
[]
[]
[]
[]
[]
[]
[]
[]
[]
[]
[]
[]
[]
[]
[]
[]
[]
[]
[]
[]
[]
[]
[]
[]
[]
[]
[]
[]
[]
[]
[]
[]
[]
[]
[]
[]
[]
[]
[]
[]
[]
[]
[]
[]
[]
[null,null,null,{"$f":"SUM(D3:D55)","v":500}]

{"sheet":"الخزينه","index":12,"n_rows":7,"n_cols":3,"rows_kept":7,"cut":false,"hidden":false,"merged":[[0,0,0,1],[2,2,2,4]]}
["رصيد الخزينه"]
["البيان","القيمه"]
["الرصيد الافتتاحي",1000,"من فضلك قم بوضع الرصيد الافتتاحي"]
["التحصيل من العملاء",{"$f":"'التحصيل من العميل'!D56","v":2052}]
["السداد للمورديين",{"$f":"'السداد للمورد'!D68","v":102.6}]
["المصروفات",{"$f":"'حركه المصروفات'!D56","v":500}]
["الرصيد الحالي",{"$f":"B3+B4-B5-B6","v":2449.4}]